Department Family                                 ,Entity                                            ,Date                   ,Expense Type                                      ,Expense Area                                      ,Supplier                                          ,Transaction Number                                ,Amount               ,VAT Registration Number                           
--------------------------------------------------,--------------------------------------------------,-----------------------,--------------------------------------------------,--------------------------------------------------,--------------------------------------------------,--------------------------------------------------,---------------------,--------------------------------------------------
DCMS                                              ,NHM                                               ,2012-04-17 00:00:00.000,B/S - Tangible Fixed Assets - Exhibi              ,PEG Visitor Offer Strat Non Exh Proj              ,Casson Mann                                       ,CADPINVSM0000008046                               ,            4812.5000,                                                  
DCMS                                              ,NHM                                               ,2012-04-17 00:00:00.000,B/S - Tangible Fixed Assets - Exhibi              ,PEG Visitor Offer Strat Non Exh Proj              ,SVM Facilities Group Ltd                          ,CADPINVSM0000008042                               ,            2500.0000,                                                  
DCMS                                              ,NHM                                               ,2012-04-17 00:00:00.000,B/S - Tangible Fixed Assets - Exhibi              ,PEG Visitor Offer Strat Non Exh Proj              ,SVM Facilities Group Ltd                          ,CADPINVSM0000008044                               ,            2000.0000,                                                  
DCMS                                              ,NHM                                               ,2012-04-17 00:00:00.000,B/S -Tang FA - Perm Exhib Construct               ,PEG Visitor Offer Strat Non Exh Proj              ,Clements and Street Limited                       ,CADPINVSM0000008045                               ,            2074.2500,                                                  
DCMS                                              ,NHM                                               ,2012-04-17 00:00:00.000,Elec Works                                        ,Estates Engineering                               ,Emcor Facility Services Ltd                       ,CADPINVSM0000008039                               ,             455.7100,                                                  
DCMS                                              ,NHM                                               ,2012-04-17 00:00:00.000,Elec Works                                        ,Estates Engineering                               ,Emcor Facility Services Ltd                       ,CADPINVSM0000008051                               ,            1591.7600,                                                  
DCMS                                              ,NHM                                               ,2012-04-17 00:00:00.000,Est RoutineMaint - Day to day Maint               ,Estates Buildings                                 ,Abloy Security                                    ,CADPINVSM0000008055                               ,            1476.8000,                                                  
DCMS                                              ,NHM                                               ,2012-04-17 00:00:00.000,FOH Uniform Costs                                 ,PEG Service Development (Ex Vis Exp)              ,Burlington Uniforms Limited                       ,CADPINVSM0000008053                               ,           -1400.1000,                                                  
DCMS                                              ,NHM                                               ,2012-04-17 00:00:00.000,FOH Uniform Costs                                 ,PEG Service Development (Ex Vis Exp)              ,Burlington Uniforms Limited                       ,CADPINVSM0000008053                               ,             486.9200,                                                  
DCMS                                              ,NHM                                               ,2012-04-17 00:00:00.000,FOH Uniform Costs                                 ,PEG Service Development (Ex Vis Exp)              ,Burlington Uniforms Limited                       ,CADPINVSM0000008053                               ,             837.0000,                                                  
DCMS                                              ,NHM                                               ,2012-04-17 00:00:00.000,FOH Uniform Costs                                 ,PEG Service Development (Ex Vis Exp)              ,Burlington Uniforms Limited                       ,CADPINVSM0000008053                               ,             931.1400,                                                  
DCMS                                              ,NHM                                               ,2012-04-17 00:00:00.000,FOH Uniform Costs                                 ,PEG Service Development (Ex Vis Exp)              ,Burlington Uniforms Limited                       ,CADPINVSM0000008053                               ,            1285.7000,                                                  
DCMS                                              ,NHM                                               ,2012-04-17 00:00:00.000,FOH Uniform Costs                                 ,PEG Service Development (Ex Vis Exp)              ,Burlington Uniforms Limited                       ,CADPINVSM0000008053                               ,            1308.0300,                                                  
DCMS                                              ,NHM                                               ,2012-04-17 00:00:00.000,FOH Uniform Costs                                 ,PEG Service Development (Ex Vis Exp)              ,Burlington Uniforms Limited                       ,CADPINVSM0000008053                               ,            9286.7500,                                                  
DCMS                                              ,NHM                                               ,2012-04-17 00:00:00.000,FOH Uniform Costs                                 ,PEG Service Development (Ex Vis Exp)              ,Burlington Uniforms Limited                       ,CADPINVSM0000008054                               ,            -461.9300,                                                  
DCMS                                              ,NHM                                               ,2012-04-17 00:00:00.000,FOH Uniform Costs                                 ,PEG Service Development (Ex Vis Exp)              ,Burlington Uniforms Limited                       ,CADPINVSM0000008054                               ,             373.7500,                                                  
DCMS                                              ,NHM                                               ,2012-04-17 00:00:00.000,FOH Uniform Costs                                 ,PEG Service Development (Ex Vis Exp)              ,Burlington Uniforms Limited                       ,CADPINVSM0000008054                               ,            4406.8500,                                                  
DCMS                                              ,NHM                                               ,2012-04-17 00:00:00.000,Irrecoverable VAT                                 ,DCS Finance                                       ,Burlington Uniforms Limited                       ,CADPINVSM0000008053                               ,              80.9900,                                                  
DCMS                                              ,NHM                                               ,2012-04-17 00:00:00.000,Irrecoverable VAT                                 ,DCS Finance                                       ,Burlington Uniforms Limited                       ,CADPINVSM0000008054                               ,              27.4700,                                                  
DCMS                                              ,NHM                                               ,2012-04-17 00:00:00.000,Irrecoverable VAT                                 ,Mineralogy Admin                                  ,CE Instruments Ltd                                ,CADPINVSM0000008048                               ,              63.1100,                                                  
DCMS                                              ,NHM                                               ,2012-04-17 00:00:00.000,Irrecoverable VAT                                 ,DCS Finance                                       ,Crest Commercial Removals Ltd                     ,CADPINVSM0000008047                               ,               5.6600,                                                  
DCMS                                              ,NHM                                               ,2012-04-17 00:00:00.000,Maintenance & Repair                              ,Mineralogy Facility                               ,CE Instruments Ltd                                ,CADPINVSM0000008048                               ,             770.0000,                                                  
DCMS                                              ,NHM                                               ,2012-04-17 00:00:00.000,MF - General Running Costs                        ,DCS Directorate                                   ,Crest Commercial Removals Ltd                     ,CADPINVSM0000008047                               ,             890.0000,                                                  
DCMS                                              ,NHM                                               ,2012-04-17 00:00:00.000,MF - General Running Costs                        ,PEG I&D Design Studio CLOSED                      ,Godfrey Syrett                                    ,CADPINVSM0000008050                               ,             212.0000,                                                  
DCMS                                              ,NHM                                               ,2012-04-17 00:00:00.000,MF - General Running Costs                        ,PEG I&D Design Studio CLOSED                      ,Godfrey Syrett                                    ,CADPINVSM0000008050                               ,             366.5000,                                                  
DCMS                                              ,NHM                                               ,2012-04-17 00:00:00.000,MF - General Running Costs                        ,PEG I&D Design Studio CLOSED                      ,Godfrey Syrett                                    ,CADPINVSM0000008050                               ,             649.8000,                                                  
DCMS                                              ,NHM                                               ,2012-04-17 00:00:00.000,MF - IT Equipment < 5k                           ,PEG Innovations / Art Science                     ,Dell Computer Corporation Ltd                     ,CADPINVSM0000008052                               ,             950.3800,                                                  
DCMS                                              ,NHM                                               ,2012-04-17 00:00:00.000,P/L - Est Irrecoverable VAT R/Costs               ,Estates Management                                ,Abloy Security                                    ,CADPINVSM0000008055                               ,               9.3900,                                                  
DCMS                                              ,NHM                                               ,2012-04-17 00:00:00.000,P/L - Est Irrecoverable VAT R/Costs               ,Estates Management                                ,Emcor Facility Services Ltd                       ,CADPINVSM0000008039                               ,               2.9000,                                                  
DCMS                                              ,NHM                                               ,2012-04-17 00:00:00.000,P/L - Est Irrecoverable VAT R/Costs               ,Estates Management                                ,Emcor Facility Services Ltd                       ,CADPINVSM0000008051                               ,              10.1200,                                                  
DCMS                                              ,NHM                                               ,2012-05-02 00:00:00.000,Equipment < 5k                                   ,VE Production Special Effects                     ,Emcor Facility Services Ltd                       ,CADPINVSM0000008142                               ,            5172.7000,                                                  
DCMS                                              ,NHM                                               ,2012-05-02 00:00:00.000,Equipment < 5k                                   ,Mineralogy Research                               ,PANalytical Ltd.                                  ,CADPINVSM0000008119                               ,             189.0000,                                                  
DCMS                                              ,NHM                                               ,2012-05-02 00:00:00.000,Equipment < 5k                                   ,Mineralogy Research                               ,PANalytical Ltd.                                  ,CADPINVSM0000008119                               ,             202.0000,                                                  
DCMS                                              ,NHM                                               ,2012-05-02 00:00:00.000,Equipment < 5k                                   ,Mineralogy Research                               ,PANalytical Ltd.                                  ,CADPINVSM0000008119                               ,             296.0000,                                                  
DCMS                                              ,NHM                                               ,2012-05-02 00:00:00.000,Equipment < 5k                                   ,Mineralogy Research                               ,PANalytical Ltd.                                  ,CADPINVSM0000008119                               ,             448.0000,                                                  
DCMS                                              ,NHM                                               ,2012-05-02 00:00:00.000,Equipment < 5k                                   ,Mineralogy Research                               ,PANalytical Ltd.                                  ,CADPINVSM0000008119                               ,            4403.0000,                                                  
DCMS                                              ,NHM                                               ,2012-05-02 00:00:00.000,Equipment < 5k                                   ,VE Production Special Effects                     ,VDC Trading Ltd                                   ,CADPINVSM0000008106                               ,             832.5000,                                                  
DCMS                                              ,NHM                                               ,2012-05-02 00:00:00.000,Est RoutineMaint - Day to day Maint               ,Estates Buildings                                 ,Emcor Facility Services Ltd                       ,CADPINVSM0000008124                               ,            1543.6600,                                                  
DCMS                                              ,NHM                                               ,2012-05-02 00:00:00.000,Est RoutineMaint - Day to day Maint               ,Estates Buildings                                 ,Market Lock and Safe                              ,CADPINVSM0000008135                               ,             645.8800,                                                  
DCMS                                              ,NHM                                               ,2012-05-02 00:00:00.000,Est RoutineMaint - Day to day Maint               ,Estates Buildings                                 ,Market Lock and Safe                              ,CADPINVSM0000008157                               ,             631.2300,                                                  
DCMS                                              ,NHM                                               ,2012-05-02 00:00:00.000,Est Statutory Mechanical Inspections              ,Estates Engineering                               ,Allianz                                           ,CADPINVSM0000008152                               ,            9176.0600,                                                  
DCMS                                              ,NHM                                               ,2012-05-02 00:00:00.000,Exhibition Production                             ,PEG Vis Serv Temporary Exhibitions                ,Teco Interiors Limited                            ,CADPINVSM0000008064                               ,            2822.0000,                                                  
DCMS                                              ,NHM                                               ,2012-05-02 00:00:00.000,Furniture/Fixtures/Fittings                       ,Palaeontology Curation                            ,Godfrey Syrett                                    ,CADPINVSM0000008093                               ,             107.1400,                                                  
DCMS                                              ,NHM                                               ,2012-05-02 00:00:00.000,Furniture/Fixtures/Fittings                       ,Palaeontology Curation                            ,Godfrey Syrett                                    ,CADPINVSM0000008093                               ,             124.9900,                                                  
DCMS                                              ,NHM                                               ,2012-05-02 00:00:00.000,Furniture/Fixtures/Fittings                       ,Palaeontology Curation                            ,Godfrey Syrett                                    ,CADPINVSM0000008093                               ,             535.6800,                                                  
DCMS                                              ,NHM                                               ,2012-05-02 00:00:00.000,Furniture/Fixtures/Fittings                       ,Palaeontology Curation                            ,Godfrey Syrett                                    ,CADPINVSM0000008093                               ,             624.9600,                                                  
DCMS                                              ,NHM                                               ,2012-05-02 00:00:00.000,Irrecoverable VAT                                 ,Palaeontology Admin                               ,Adam Rouilly Ltd                                  ,CADPINVSM0000008094                               ,              56.9600,                                                  
DCMS                                              ,NHM                                               ,2012-05-02 00:00:00.000,Irrecoverable VAT                                 ,Palaeontology Admin                               ,Amber Composites Ltd                              ,CADPINVSM0000008113                               ,              56.5300,                                                  
DCMS                                              ,NHM                                               ,2012-05-02 00:00:00.000,Irrecoverable VAT                                 ,DCS Finance                                       ,Axiell Ltd                                        ,CADPINVSM0000008160                               ,              21.8800,                                                  
DCMS                                              ,NHM                                               ,2012-05-02 00:00:00.000,Irrecoverable VAT                                 ,Zoology Admin                                     ,Bioline Reagents Limited                          ,CADPINVSM0000008114                               ,              79.5000,                                                  
DCMS                                              ,NHM                                               ,2012-05-02 00:00:00.000,Irrecoverable VAT                                 ,Mineralogy Admin                                  ,Bruker UK Ltd                                     ,CADPINVSM0000008122                               ,              88.2600,                                                  
DCMS                                              ,NHM                                               ,2012-05-02 00:00:00.000,Irrecoverable VAT                                 ,Palaeontology Admin                               ,Conservation by Design Ltd                        ,CADPINVSM0000008112                               ,              76.6600,                                                  
DCMS                                              ,NHM                                               ,2012-05-02 00:00:00.000,Irrecoverable VAT                                 ,Zoology Admin                                     ,Emcor Facility Services Ltd                       ,CADPINVSM0000008126                               ,             180.0700,                                                  
DCMS                                              ,NHM                                               ,2012-05-02 00:00:00.000,Irrecoverable VAT                                 ,DCS Finance                                       ,Eurodata Systems Limited                          ,CADPINVSM0000008085                               ,              40.2300,                                                  
DCMS                                              ,NHM                                               ,2012-05-02 00:00:00.000,Irrecoverable VAT                                 ,DCS Finance                                       ,Eurodata Systems Limited                          ,CADPINVSM0000008096                               ,              31.8400,                                                  
DCMS                                              ,NHM                                               ,2012-05-02 00:00:00.000,Irrecoverable VAT                                 ,DCS Finance                                       ,Eurodata Systems Limited                          ,CADPINVSM0000008097                               ,              40.2300,                                                  
DCMS                                              ,NHM                                               ,2012-05-02 00:00:00.000,Irrecoverable VAT                                 ,Palaeontology Admin                               ,G Ryder & Co Ltd                                  ,CADPINVSM0000008161                               ,             485.5300,                                                  
DCMS                                              ,NHM                                               ,2012-05-02 00:00:00.000,Irrecoverable VAT                                 ,Collections Committee (Furniture)                 ,Godfrey Syrett                                    ,CADPINVSM0000008100                               ,             122.1200,                                                  
DCMS                                              ,NHM                                               ,2012-05-02 00:00:00.000,Irrecoverable VAT                                 ,Entomology Admin                                  ,Harry Spurr t/a Stephenson Blake                  ,CADPINVSM0000008146                               ,              13.1700,                                                  
DCMS                                              ,NHM                                               ,2012-05-02 00:00:00.000,Irrecoverable VAT                                 ,Collections Committee (Furniture)                 ,Harry Spurr t/a Stephenson Blake                  ,CADPINVSM0000008146                               ,             242.1100,                                                  
DCMS                                              ,NHM                                               ,2012-05-02 00:00:00.000,Irrecoverable VAT                                 ,Entomology Admin                                  ,Harry Spurr t/a Stephenson Blake                  ,CADPINVSM0000008156                               ,              33.1100,                                                  
DCMS                                              ,NHM                                               ,2012-05-02 00:00:00.000,Irrecoverable VAT                                 ,Collections Committee (Furniture)                 ,Harry Spurr t/a Stephenson Blake                  ,CADPINVSM0000008156                               ,             278.5200,                                                  
DCMS                                              ,NHM                                               ,2012-05-02 00:00:00.000,Irrecoverable VAT                                 ,DCS Finance                                       ,Imperial College                                  ,CADPINVSM0000008084                               ,              44.5200,                                                  
DCMS                                              ,NHM                                               ,2012-05-02 00:00:00.000,MF - IT Equipment < 5k                           ,Sci L&A Archives                                  ,Dell Computer Corporation Ltd                     ,CADPINVSM0000008101                               ,              72.7100,                                                  
DCMS                                              ,NHM                                               ,2012-05-02 00:00:00.000,MF - IT Equipment < 5k                           ,Sci L&A Archives                                  ,Dell Computer Corporation Ltd                     ,CADPINVSM0000008101                               ,             887.1000,                                                  
DCMS                                              ,NHM                                               ,2012-05-02 00:00:00.000,P/L - Advertising Costs                           ,PEG Marketing                                     ,Ambient Media Worldwide Ltd                       ,CADPINVSM0000008074                               ,             640.0000,                                                  
DCMS                                              ,NHM                                               ,2012-05-02 00:00:00.000,P/L - Advertising Costs                           ,PEG Marketing                                     ,DLG                                               ,CADPINVSM0000008078                               ,            1010.0000,                                                  
DCMS                                              ,NHM                                               ,2012-05-02 00:00:00.000,P/L - Advertising Costs                           ,PEG Marketing                                     ,Total Media Limited                               ,CADPINVSM0000008072                               ,             801.4600,                                                  
DCMS                                              ,NHM                                               ,2012-05-02 00:00:00.000,P/L - Equip & Related Costs                       ,Palaeontology Research                            ,Leica Microsystems (UK) Ltd                       ,CADPINVSM0000008108                               ,               5.3200,                                                  
DCMS                                              ,NHM                                               ,2012-05-02 00:00:00.000,P/L - Equip & Related Costs                       ,Palaeontology Research                            ,Leica Microsystems (UK) Ltd                       ,CADPINVSM0000008108                               ,              26.6000,                                                  
DCMS                                              ,NHM                                               ,2012-05-02 00:00:00.000,P/L - Equip & Related Costs                       ,Palaeontology Research                            ,Leica Microsystems (UK) Ltd                       ,CADPINVSM0000008108                               ,             384.3500,                                                  
DCMS                                              ,NHM                                               ,2012-05-02 00:00:00.000,P/L - Equip & Related Costs                       ,Palaeontology Research                            ,Leica Microsystems (UK) Ltd                       ,CADPINVSM0000008108                               ,            1921.7600,                                                  
DCMS                                              ,NHM                                               ,2012-05-02 00:00:00.000,P/L - Equip & Related Costs                       ,Botany Research                                   ,Nikon (UK) Ltd                                    ,CADPINVSM0000008158                               ,            -542.0000,                                                  
DCMS                                              ,NHM                                               ,2012-05-02 00:00:00.000,P/L - Equip & Related Costs                       ,Botany Research                                   ,Nikon (UK) Ltd                                    ,CADPINVSM0000008158                               ,            -108.4000,                                                  
DCMS                                              ,NHM                                               ,2012-05-02 00:00:00.000,P/L - Equip & Related Costs                       ,Botany Research                                   ,Nikon (UK) Ltd                                    ,CADPINVSM0000008158                               ,               0.0000,                                                  
DCMS                                              ,NHM                                               ,2012-05-02 00:00:00.000,P/L - Equip & Related Costs                       ,Botany Research                                   ,Nikon (UK) Ltd                                    ,CADPINVSM0000008158                               ,               2.0000,                                                  
DCMS                                              ,NHM                                               ,2012-05-02 00:00:00.000,P/L - Equip & Related Costs                       ,Botany Research                                   ,Nikon (UK) Ltd                                    ,CADPINVSM0000008158                               ,               2.2000,                                                  
DCMS                                              ,NHM                                               ,2012-05-02 00:00:00.000,P/L - Equip & Related Costs                       ,Botany Research                                   ,Nikon (UK) Ltd                                    ,CADPINVSM0000008158                               ,               9.4000,                                                  
DCMS                                              ,NHM                                               ,2012-05-02 00:00:00.000,P/L - Equip & Related Costs                       ,Botany Research                                   ,Nikon (UK) Ltd                                    ,CADPINVSM0000008158                               ,              10.0000,                                                  
DCMS                                              ,NHM                                               ,2012-05-02 00:00:00.000,P/L - Equip & Related Costs                       ,Botany Research                                   ,Nikon (UK) Ltd                                    ,CADPINVSM0000008158                               ,              11.0000,                                                  
DCMS                                              ,NHM                                               ,2012-05-02 00:00:00.000,P/L - Equip & Related Costs                       ,Botany Research                                   ,Nikon (UK) Ltd                                    ,CADPINVSM0000008158                               ,              14.8000,                                                  
DCMS                                              ,NHM                                               ,2012-05-02 00:00:00.000,P/L - Equip & Related Costs                       ,Botany Research                                   ,Nikon (UK) Ltd                                    ,CADPINVSM0000008158                               ,              26.0000,                                                  
DCMS                                              ,NHM                                               ,2012-05-02 00:00:00.000,P/L - Equip & Related Costs                       ,Botany Research                                   ,Nikon (UK) Ltd                                    ,CADPINVSM0000008158                               ,              33.6000,                                                  
DCMS                                              ,NHM                                               ,2012-05-02 00:00:00.000,P/L - Equip & Related Costs                       ,Botany Research                                   ,Nikon (UK) Ltd                                    ,CADPINVSM0000008158                               ,              34.0000,                                                  
DCMS                                              ,NHM                                               ,2012-05-02 00:00:00.000,P/L - Equip & Related Costs                       ,Botany Research                                   ,Nikon (UK) Ltd                                    ,CADPINVSM0000008158                               ,              47.0000,                                                  
DCMS                                              ,NHM                                               ,2012-05-02 00:00:00.000,P/L - Equip & Related Costs                       ,Botany Research                                   ,Nikon (UK) Ltd                                    ,CADPINVSM0000008158                               ,              68.2000,                                                  
DCMS                                              ,NHM                                               ,2012-05-02 00:00:00.000,P/L - Equip & Related Costs                       ,Botany Research                                   ,Nikon (UK) Ltd                                    ,CADPINVSM0000008158                               ,              74.0000,                                                  
DCMS                                              ,NHM                                               ,2012-05-02 00:00:00.000,P/L - Equip & Related Costs                       ,Botany Research                                   ,Nikon (UK) Ltd                                    ,CADPINVSM0000008158                               ,             130.0000,                                                  
DCMS                                              ,NHM                                               ,2012-05-02 00:00:00.000,P/L - Equip & Related Costs                       ,Botany Research                                   ,Nikon (UK) Ltd                                    ,CADPINVSM0000008158                               ,             137.2000,                                                  
DCMS                                              ,NHM                                               ,2012-05-02 00:00:00.000,P/L - Equip & Related Costs                       ,Botany Research                                   ,Nikon (UK) Ltd                                    ,CADPINVSM0000008158                               ,             168.0000,                                                  
DCMS                                              ,NHM                                               ,2012-05-02 00:00:00.000,P/L - Equip & Related Costs                       ,Botany Research                                   ,Nikon (UK) Ltd                                    ,CADPINVSM0000008158                               ,             170.0000,                                                  
DCMS                                              ,NHM                                               ,2012-05-02 00:00:00.000,P/L - Equip & Related Costs                       ,Botany Research                                   ,Nikon (UK) Ltd                                    ,CADPINVSM0000008158                               ,             242.0000,                                                  
DCMS                                              ,NHM                                               ,2012-05-02 00:00:00.000,P/L - Equip & Related Costs                       ,Botany Research                                   ,Nikon (UK) Ltd                                    ,CADPINVSM0000008158                               ,             341.0000,                                                  
DCMS                                              ,NHM                                               ,2012-05-02 00:00:00.000,P/L - Equip & Related Costs                       ,Botany Research                                   ,Nikon (UK) Ltd                                    ,CADPINVSM0000008158                               ,             686.0000,                                                  
DCMS                                              ,NHM                                               ,2012-05-02 00:00:00.000,P/L - Equip & Related Costs                       ,Botany Research                                   ,Nikon (UK) Ltd                                    ,CADPINVSM0000008158                               ,            1210.0000,                                                  
DCMS                                              ,NHM                                               ,2012-05-02 00:00:00.000,P/L - Est Irrecoverable VAT R/Costs               ,Estates Management                                ,Allianz                                           ,CADPINVSM0000008152                               ,              58.3600,                                                  
DCMS                                              ,NHM                                               ,2012-05-02 00:00:00.000,P/L - Est Irrecoverable VAT R/Costs               ,Estates Management                                ,Cynergin Consultants Ltd                          ,CADPINVSM0000008123                               ,              71.9800,                                                  
DCMS                                              ,NHM                                               ,2012-05-02 00:00:00.000,P/L - Signage                                     ,PEG Marketing                                     ,Zephyr Flags & Banners                            ,CADPINVSM0000008073                               ,             860.0000,                                                  
DCMS                                              ,NHM                                               ,2012-05-02 00:00:00.000,Professional Printing                             ,PEG Marketing                                     ,Benugo                                            ,CADPINVSM0000008075                               ,             600.0000,                                                  
DCMS                                              ,NHM                                               ,2012-05-02 00:00:00.000,Professional Printing                             ,PEG Marketing                                     ,Newgate Concise                                   ,CADPINVSM0000008076                               ,             440.0000,                                                  
DCMS                                              ,NHM                                               ,2012-05-02 00:00:00.000,Professional Printing                             ,PEG Marketing                                     ,Waterstone's                                      ,CADPINVSM0000008077                               ,             640.0000,                                                  
DCMS                                              ,NHM                                               ,2012-05-02 00:00:00.000,Professional Services/Fees                        ,Estates Buildings                                 ,Baker Mallett                                     ,CADPINVSM0000008150                               ,             913.4100,                                                  
DCMS                                              ,NHM                                               ,2012-05-02 00:00:00.000,Professional Services/Fees                        ,Estates Engineering                               ,Cynergin Consultants Ltd                          ,CADPINVSM0000008123                               ,           11317.5000,                                                  
DCMS                                              ,NHM                                               ,2012-05-02 00:00:00.000,Professional Services/Fees                        ,Estates Engineering                               ,Cynergin Consultants Ltd                          ,CADPINVSM0000008147                               ,            4875.0000,                                                  
DCMS                                              ,NHM                                               ,2012-05-02 00:00:00.000,Professional Services/Fees                        ,Estates Buildings                                 ,Fothergill & Company                              ,CADPINVSM0000008151                               ,             992.6900,                                                  
DCMS                                              ,NHM                                               ,2012-05-02 00:00:00.000,Professional Services/Fees                        ,Estates Buildings                                 ,SVM Facilities Group Ltd                          ,CADPINVSM0000008149                               ,            1000.0000,                                                  
DCMS                                              ,NHM                                               ,2012-05-02 00:00:00.000,Professional Services/Fees                        ,Estates Buildings                                 ,SVM Facilities Group Ltd                          ,CADPINVSM0000008149                               ,            1500.0000,                                                  
DCMS                                              ,NHM                                               ,2012-05-02 00:00:00.000,Radios                                            ,Est Security SK                                   ,Radiocoms Systems Limited                         ,CADPINVSM0000008154                               ,            2315.4100,                                                  
DCMS                                              ,NHM                                               ,2012-05-02 00:00:00.000,Sci Cap Irrecoverable VAT                         ,Zoology Admin                                     ,Nikon (UK) Ltd                                    ,CADPINVSM0000008104                               ,             995.1600,                                                  
DCMS                                              ,NHM                                               ,2012-05-02 00:00:00.000,Sci Cap Irrecoverable VAT                         ,Mineralogy Admin                                  ,Safe Build Systems Ltd                            ,CADPINVSM0000008121                               ,             357.3500,                                                  
DCMS                                              ,NHM                                               ,2012-05-02 00:00:00.000,Sci Cap Irrecoverable VAT                         ,Mineralogy Admin                                  ,ThermoFisher Scientific                           ,CADPINVSM0000008139                               ,            4342.3000,                                                  
DCMS                                              ,NHM                                               ,2012-05-02 00:00:00.000,Security Contract Costs                           ,Est Security SK                                   ,Victoria & Albert Museum                          ,CADPINVSM0000008141                               ,            2122.5200,                                                  
DCMS                                              ,NHM                                               ,2012-05-02 00:00:00.000,Security Contract Costs                           ,Est Security SK                                   ,Victoria & Albert Museum                          ,CADPINVSM0000008141                               ,            4965.9800,                                                  
DCMS                                              ,NHM                                               ,2012-05-02 00:00:00.000,Specimen Conservation                             ,Palaeontology Curation                            ,Amber Composites Ltd                              ,CADPINVSM0000008113                               ,              15.0000,                                                  
DCMS                                              ,NHM                                               ,2012-05-02 00:00:00.000,Specimen Conservation                             ,Palaeontology Curation                            ,Amber Composites Ltd                              ,CADPINVSM0000008113                               ,              67.4800,                                                  
DCMS                                              ,NHM                                               ,2012-05-02 00:00:00.000,Specimen Conservation                             ,Palaeontology Curation                            ,Amber Composites Ltd                              ,CADPINVSM0000008113                               ,             607.2200,                                                  
DCMS                                              ,NHM                                               ,2012-05-02 00:00:00.000,Specimen Conservation                             ,Palaeontology Curation                            ,Conservation by Design Ltd                        ,CADPINVSM0000008112                               ,             214.2000,                                                  
DCMS                                              ,NHM                                               ,2012-05-02 00:00:00.000,Specimen Conservation                             ,Palaeontology Curation                            ,Conservation by Design Ltd                        ,CADPINVSM0000008112                               ,             285.6000,                                                  
DCMS                                              ,NHM                                               ,2012-05-02 00:00:00.000,Specimen Conservation                             ,Palaeontology Curation                            ,Conservation by Design Ltd                        ,CADPINVSM0000008112                               ,             435.5000,                                                  
DCMS                                              ,NHM                                               ,2012-05-02 00:00:00.000,Specimen Conservation                             ,Palaeontology Curation                            ,G Ryder & Co Ltd                                  ,CADPINVSM0000008161                               ,              80.0000,                                                  
DCMS                                              ,NHM                                               ,2012-05-02 00:00:00.000,Specimen Conservation                             ,Palaeontology Curation                            ,G Ryder & Co Ltd                                  ,CADPINVSM0000008161                               ,             236.0000,                                                  
DCMS                                              ,NHM                                               ,2012-05-02 00:00:00.000,Specimen Conservation                             ,Palaeontology Curation                            ,G Ryder & Co Ltd                                  ,CADPINVSM0000008161                               ,             280.0000,                                                  
DCMS                                              ,NHM                                               ,2012-05-02 00:00:00.000,Specimen Conservation                             ,Palaeontology Curation                            ,G Ryder & Co Ltd                                  ,CADPINVSM0000008161                               ,             290.0000,                                                  
DCMS                                              ,NHM                                               ,2012-05-02 00:00:00.000,Specimen Conservation                             ,Palaeontology Curation                            ,G Ryder & Co Ltd                                  ,CADPINVSM0000008161                               ,             298.0000,                                                  
DCMS                                              ,NHM                                               ,2012-05-02 00:00:00.000,Specimen Conservation                             ,Palaeontology Curation                            ,G Ryder & Co Ltd                                  ,CADPINVSM0000008161                               ,            1140.0000,                                                  
DCMS                                              ,NHM                                               ,2012-05-02 00:00:00.000,Specimen Conservation                             ,Palaeontology Curation                            ,G Ryder & Co Ltd                                  ,CADPINVSM0000008161                               ,            1280.0000,                                                  
DCMS                                              ,NHM                                               ,2012-05-02 00:00:00.000,Specimen Conservation                             ,Palaeontology Curation                            ,G Ryder & Co Ltd                                  ,CADPINVSM0000008161                               ,            2320.0000,                                                  
DCMS                                              ,NHM                                               ,2012-05-02 00:00:00.000,Specimen Conservation                             ,Palaeontology Curation                            ,John Burn & Co Ltd                                ,CADPINVSM0000008090                               ,             200.0000,                                                  
DCMS                                              ,NHM                                               ,2012-05-02 00:00:00.000,Specimen Conservation                             ,Palaeontology Curation                            ,John Burn & Co Ltd                                ,CADPINVSM0000008090                               ,             369.8400,                                                  
DCMS                                              ,NHM                                               ,2012-05-02 00:00:00.000,B/S - F Assets Equip Irr VAT                      ,Sci L&A Management                                ,Secol Ltd                                         ,PCNOTE        4088                                ,             -48.6700,                                                  
DCMS                                              ,NHM                                               ,2012-05-02 00:00:00.000,P/L - Est Irrecoverable VAT R/Costs               ,Estates Management                                ,Wilson James Limited                              ,PCNOTE        4082                                ,             -24.5200,                                                  
DCMS                                              ,NHM                                               ,2012-05-02 00:00:00.000,Security Contract Costs                           ,Est Security SK                                   ,Wilson James Limited                              ,PCNOTE        4082                                ,           -3856.0000,                                                  
DCMS                                              ,NHM                                               ,2012-05-02 00:00:00.000,Specimen Conservation                             ,Sci L&A Collections&Reader Services               ,Secol Ltd                                         ,PCNOTE        4088                                ,            -593.8600,                                                  
DCMS                                              ,NHM                                               ,2012-04-17 00:00:00.000,Hostel/Hotel Accommodation                        ,Mineralogy Research                               ,Winchester White                                  ,PINV      167455                                  ,              50.0000,                                                  
DCMS                                              ,NHM                                               ,2012-04-17 00:00:00.000,Hostel/Hotel Accommodation                        ,Mineralogy Research                               ,Winchester White                                  ,PINV      167455                                  ,             250.0000,                                                  
DCMS                                              ,NHM                                               ,2012-04-17 00:00:00.000,Hostel/Hotel Accommodation                        ,Mineralogy Research                               ,Winchester White                                  ,PINV      167455                                  ,            2772.0000,                                                  
DCMS                                              ,NHM                                               ,2012-04-17 00:00:00.000,Hostel/Hotel Accommodation                        ,Mineralogy Research                               ,Winchester White                                  ,PINV      167455                                  ,            6805.4700,                                                  
DCMS                                              ,NHM                                               ,2012-04-20 00:00:00.000,Agency Temporary Staff Costs                      ,PEG Vis Serv Temporary Exhibitions                ,Bespoke Recruitment                               ,PINV      167541                                  ,            1453.5800,                                                  
DCMS                                              ,NHM                                               ,2012-04-20 00:00:00.000,Agency Temporary Staff Costs                      ,Tring Administration                              ,Hays Construction & Property                      ,PINV      167500                                  ,             246.0600,                                                  
DCMS                                              ,NHM                                               ,2012-04-20 00:00:00.000,Agency Temporary Staff Costs                      ,Tring Visitor Services (FOH)                      ,Hays Construction & Property                      ,PINV      167500                                  ,             936.0100,                                                  
DCMS                                              ,NHM                                               ,2012-04-20 00:00:00.000,Agency Temporary Staff Costs                      ,PEG Interactive Media CLOSED                      ,Hays Construction & Property                      ,PINV      167516                                  ,             446.5900,                                                  
DCMS                                              ,NHM                                               ,2012-04-20 00:00:00.000,Agency Temporary Staff Costs                      ,Tring Administration                              ,Hays Construction & Property                      ,PINV      167591                                  ,             288.3200,                                                  
DCMS                                              ,NHM                                               ,2012-04-20 00:00:00.000,Agency Temporary Staff Costs                      ,Tring Visitor Services (FOH)                      ,Hays Construction & Property                      ,PINV      167591                                  ,             442.0800,                                                  
DCMS                                              ,NHM                                               ,2012-04-20 00:00:00.000,Agency Temporary Staff Costs                      ,Tring Visitor Services (FOH)                      ,Hays Construction & Property                      ,PINV      167592                                  ,             144.1600,                                                  
DCMS                                              ,NHM                                               ,2012-04-20 00:00:00.000,Agency Temporary Staff Costs                      ,Tring Visitor Services (FOH)                      ,Hays Construction & Property                      ,PINV      167593                                  ,             826.7300,                                                  
DCMS                                              ,NHM                                               ,2012-04-20 00:00:00.000,Agency Temporary Staff Costs                      ,Tring Visitor Services (FOH)                      ,Hays Construction & Property                      ,PINV      167595                                  ,             137.3100,                                                  
DCMS                                              ,NHM                                               ,2012-04-20 00:00:00.000,Agency Temporary Staff Costs                      ,Tring Visitor Services (FOH)                      ,Hays Construction & Property                      ,PINV      167596                                  ,             340.2900,                                                  
DCMS                                              ,NHM                                               ,2012-04-20 00:00:00.000,Agency Temporary Staff Costs                      ,Tring Visitor Services (FOH)                      ,Hays Construction & Property                      ,PINV      167598                                  ,             561.1800,                                                  
DCMS                                              ,NHM                                               ,2012-04-20 00:00:00.000,Agency Temporary Staff Costs                      ,DCS Audit & Risk Assurance                        ,Marks Sattin                                      ,PINV      167569                                  ,            1067.8300,                                                  
DCMS                                              ,NHM                                               ,2012-04-20 00:00:00.000,Agency Temporary Staff Costs                      ,PEG Interactive Media CLOSED                      ,PFJ Recruitment Consultants                       ,PINV      167526                                  ,             476.2800,                                                  
DCMS                                              ,NHM                                               ,2012-04-20 00:00:00.000,Agency Temporary Staff Costs                      ,PEG Interactive Media CLOSED                      ,PFJ Recruitment Consultants                       ,PINV      167527                                  ,             476.2800,                                                  
DCMS                                              ,NHM                                               ,2012-04-20 00:00:00.000,Agency Temporary Staff Costs                      ,PEG Interactive Media CLOSED                      ,PFJ Recruitment Consultants                       ,PINV      167528                                  ,            1050.0000,                                                  
DCMS                                              ,NHM                                               ,2012-04-20 00:00:00.000,Agency Temporary Staff Costs                      ,PEG Interactive Media CLOSED                      ,PFJ Recruitment Consultants                       ,PINV      167529                                  ,            1050.0000,                                                  
DCMS                                              ,NHM                                               ,2012-04-20 00:00:00.000,Agency Temporary Staff Costs                      ,PEG Interactive Media CLOSED                      ,PFJ Recruitment Consultants                       ,PINV      167530                                  ,            1050.0000,                                                  
DCMS                                              ,NHM                                               ,2012-04-20 00:00:00.000,Agency Temporary Staff Costs                      ,PEG Interactive Media CLOSED                      ,PFJ Recruitment Consultants                       ,PINV      167531                                  ,            1050.0000,                                                  
DCMS                                              ,NHM                                               ,2012-04-20 00:00:00.000,Agency Temporary Staff Costs                      ,Science Administration Team                       ,Spring Personnel                                  ,PINV      167518                                  ,             118.2700,                                                  
DCMS                                              ,NHM                                               ,2012-04-20 00:00:00.000,Agency Temporary Staff Costs                      ,Science Administration Team                       ,Spring Personnel                                  ,PINV      167518                                  ,             591.3600,                                                  
DCMS                                              ,NHM                                               ,2012-04-20 00:00:00.000,Agency Temporary Staff Costs                      ,Sci L&A Collections&Reader Services               ,Spring Personnel                                  ,PINV      167519                                  ,             137.1100,                                                  
DCMS                                              ,NHM                                               ,2012-04-20 00:00:00.000,Agency Temporary Staff Costs                      ,Sci L&A Collections&Reader Services               ,Spring Personnel                                  ,PINV      167519                                  ,             685.5300,                                                  
DCMS                                              ,NHM                                               ,2012-04-20 00:00:00.000,Equip Hire & Maintenance (Leases)                 ,PEG Interpretation CLOSED                         ,CF Asset Finance                                  ,PINV      167585                                  ,             763.0500,                                                  
DCMS                                              ,NHM                                               ,2012-04-20 00:00:00.000,Equip Hire & Maintenance (Leases)                 ,Sci L&A Digital & Data Services                   ,SirsiDynix                                        ,PINV      167565                                  ,            2781.0300,                                                  
DCMS                                              ,NHM                                               ,2012-04-20 00:00:00.000,Equip Hire & Maintenance (Leases)                 ,Sci L&A Digital & Data Services                   ,SirsiDynix                                        ,PINV      167565                                  ,           33931.5500,                                                  
DCMS                                              ,NHM                                               ,2012-04-20 00:00:00.000,EXF - Travel                                      ,Entomology Research                               ,Key Travel                                        ,PINV      167473                                  ,             775.4900,                                                  
DCMS                                              ,NHM                                               ,2012-04-20 00:00:00.000,EXF - Travel                                      ,Zoology Research CLSD                             ,Key Travel                                        ,PINV      167474                                  ,             542.7600,                                                  
DCMS                                              ,NHM                                               ,2012-04-20 00:00:00.000,EXF - Travel                                      ,Entomology Research                               ,Key Travel                                        ,PINV      167478                                  ,             645.1000,                                                  
DCMS                                              ,NHM                                               ,2012-04-20 00:00:00.000,EXF - Travel                                      ,T&F Biodiversity Systematics Journal              ,Key Travel                                        ,PINV      167483                                  ,             529.3900,                                                  
DCMS                                              ,NHM                                               ,2012-04-20 00:00:00.000,EXF - Travel                                      ,Zoology Research CLSD                             ,Key Travel                                        ,PINV      167547                                  ,            1147.0900,                                                  
DCMS                                              ,NHM                                               ,2012-04-20 00:00:00.000,EXF - Travel                                      ,Zoology Research CLSD                             ,Key Travel                                        ,PINV      167549                                  ,            1384.3000,                                                  
DCMS                                              ,NHM                                               ,2012-04-20 00:00:00.000,Exhibition Production                             ,PEG Vis Serv Temporary Exhibitions                ,C&M Apostolides Ltd                               ,PINV      167539                                  ,            4565.0000,                                                  
DCMS                                              ,NHM                                               ,2012-04-20 00:00:00.000,Exhibition Production                             ,PEG Vis Serv Temporary Exhibitions                ,Displayways                                       ,PINV      167537                                  ,           10519.0000,                                                  
DCMS                                              ,NHM                                               ,2012-04-20 00:00:00.000,Exhibition Production                             ,PEG Vis Serv Temporary Exhibitions                ,H & B Contracts Ltd                               ,PINV      167550                                  ,            2512.0000,                                                  
DCMS                                              ,NHM                                               ,2012-04-20 00:00:00.000,Exhibition Production                             ,PEG Vis Serv Temporary Exhibitions                ,H & B Contracts Ltd                               ,PINV      167551                                  ,             646.0000,                                                  
DCMS                                              ,NHM                                               ,2012-04-20 00:00:00.000,Exhibition Production                             ,PEG Vis Serv Temporary Exhibitions                ,Morris Leslie South East Ltd                      ,PINV      167555                                  ,             713.7500,                                                  
DCMS                                              ,NHM                                               ,2012-04-20 00:00:00.000,Exhibition Production                             ,PEG Vis Serv Temporary Exhibitions                ,Morris Leslie South East Ltd                      ,PINV      167556                                  ,             790.2500,                                                  
DCMS                                              ,NHM                                               ,2012-04-20 00:00:00.000,HR Employee Assistance Programme                  ,DCS Human Resources Operations                    ,Workplace Options                                 ,PINV      167464                                  ,            3225.8300,                                                  
DCMS                                              ,NHM                                               ,2012-04-20 00:00:00.000,HR Payroll Provider                               ,DCS Human Resources Operations                    ,NorthgateArinso UK Ltd                            ,PINV      167468                                  ,           10896.5100,                                                  
DCMS                                              ,NHM                                               ,2012-04-20 00:00:00.000,Irrecoverable VAT                                 ,DCS Finance                                       ,Business Disability Forum                         ,PINV      167573                                  ,               6.6800,                                                  
DCMS                                              ,NHM                                               ,2012-04-20 00:00:00.000,Irrecoverable VAT                                 ,DCS Finance                                       ,CF Asset Finance                                  ,PINV      167563                                  ,              31.4800,                                                  
DCMS                                              ,NHM                                               ,2012-04-20 00:00:00.000,Irrecoverable VAT                                 ,DCS Finance                                       ,Computers In Personnel Ltd                        ,PINV      167465                                  ,              38.1600,                                                  
DCMS                                              ,NHM                                               ,2012-04-20 00:00:00.000,Irrecoverable VAT                                 ,DCS Finance                                       ,Gorkana                                           ,PINV      167533                                  ,              40.4500,                                                  
DCMS                                              ,NHM                                               ,2012-04-20 00:00:00.000,Irrecoverable VAT                                 ,DCS Finance                                       ,Marks Sattin                                      ,PINV      167569                                  ,               6.7900,                                                  
DCMS                                              ,NHM                                               ,2012-04-20 00:00:00.000,Irrecoverable VAT                                 ,DCS Finance                                       ,NorthgateArinso UK Ltd                            ,PINV      167468                                  ,              69.3000,                                                  
DCMS                                              ,NHM                                               ,2012-04-20 00:00:00.000,Irrecoverable VAT                                 ,DCS Finance                                       ,Recall Ltd                                        ,PINV      167583                                  ,               3.4600,                                                  
DCMS                                              ,NHM                                               ,2012-04-20 00:00:00.000,Irrecoverable VAT                                 ,DCS Finance                                       ,Science Museum                                    ,PINV      167484                                  ,               7.9500,                                                  
DCMS                                              ,NHM                                               ,2012-04-20 00:00:00.000,Irrecoverable VAT                                 ,Entomology Admin                                  ,Spring Personnel                                  ,PINV      167599                                  ,              49.7700,                                                  
DCMS                                              ,NHM                                               ,2012-04-20 00:00:00.000,Irrecoverable VAT                                 ,Entomology Admin                                  ,Spring Personnel                                  ,PINV      167600                                  ,              52.7800,                                                  
DCMS                                              ,NHM                                               ,2012-04-20 00:00:00.000,Irrecoverable VAT                                 ,Entomology Admin                                  ,Spring Personnel                                  ,PINV      167601                                  ,              54.2900,                                                  
DCMS                                              ,NHM                                               ,2012-04-20 00:00:00.000,Irrecoverable VAT                                 ,DCS Finance                                       ,Workplace Options                                 ,PINV      167464                                  ,              20.5200,                                                  
DCMS                                              ,NHM                                               ,2012-04-20 00:00:00.000,IT Maintenance                                    ,DCS Human Resources Operations                    ,Computers In Personnel Ltd                        ,PINV      167465                                  ,            6000.0000,                                                  
DCMS                                              ,NHM                                               ,2012-04-20 00:00:00.000,IT Services                                       ,DCS ICT (Info Computer Techonology)               ,Recall Ltd                                        ,PINV      167583                                  ,             543.4400,                                                  
DCMS                                              ,NHM                                               ,2012-04-20 00:00:00.000,Lab Consumables                                   ,Zoology Research CLSD                             ,Scientific Laboratory Supplies Ltd                ,PINV      167552                                  ,             133.2000,                                                  
DCMS                                              ,NHM                                               ,2012-04-20 00:00:00.000,Lab Consumables                                   ,Zoology Research CLSD                             ,Scientific Laboratory Supplies Ltd                ,PINV      167552                                  ,             666.0000,                                                  
DCMS                                              ,NHM                                               ,2012-04-20 00:00:00.000,Lab Consumables                                   ,Zoology Research CLSD                             ,Scientific Laboratory Supplies Ltd                ,PINV      167553                                  ,             113.7600,                                                  
DCMS                                              ,NHM                                               ,2012-04-20 00:00:00.000,Professional Services/Fees                        ,Estates Engineering                               ,BSI Management Systems                            ,PINV      167574                                  ,             828.0000,                                                  
DCMS                                              ,NHM                                               ,2012-04-20 00:00:00.000,Recruitment Costs & Placement Fees                ,DCS Human Resources Operations                    ,Disclosure Scotland                               ,PINV      167466                                  ,            1025.0000,                                                  
DCMS                                              ,NHM                                               ,2012-04-20 00:00:00.000,Recruitment Costs & Placement Fees                ,Commerce Mgmt & Strategy                          ,Spring Personnel                                  ,PINV      167456                                  ,             848.7100,                                                  
DCMS                                              ,NHM                                               ,2012-04-20 00:00:00.000,Recruitment Costs & Placement Fees                ,Commerce Mgmt & Strategy                          ,Spring Personnel                                  ,PINV      167457                                  ,             678.2000,                                                  
DCMS                                              ,NHM                                               ,2012-04-20 00:00:00.000,Recruitment Costs & Placement Fees                ,Commerce Mgmt & Strategy                          ,Spring Personnel                                  ,PINV      167517                                  ,             656.6700,                                                  
DCMS                                              ,NHM                                               ,2012-04-20 00:00:00.000,SS Consult/Prof Fees                              ,National Museum Directors Conf NMDC               ,ixxy.co.uk                                        ,PINV      167499                                  ,             600.0000,                                                  
DCMS                                              ,NHM                                               ,2012-04-20 00:00:00.000,SS Electricity                                    ,S/S - HV Ring Main                                ,EDF Energy Cust Field Services                    ,PINV      167510                                  ,             597.0000,                                                  
DCMS                                              ,NHM                                               ,2012-04-20 00:00:00.000,SS Maintenance                                    ,Combined Heat & Power unit                        ,Servest (Sherwood) Ltd                            ,PINV      167586                                  ,             182.8900,                                                  
DCMS                                              ,NHM                                               ,2012-04-20 00:00:00.000,Subscriptions                                     ,DCS Human Resources Operations                    ,Business Disability Forum                         ,PINV      167573                                  ,            1050.0000,                                                  
DCMS                                              ,NHM                                               ,2012-04-20 00:00:00.000,Work In Progress - Publishing                     ,Commerce Publishing                               ,Woodland Media                                    ,PINV      167488                                  ,             570.2000,                                                  
DCMS                                              ,NHM                                               ,2012-04-25 00:00:00.000,Agency Temporary Staff Costs                      ,DCS Audit & Risk Assurance                        ,Marks Sattin                                      ,PINV      167645                                  ,            1429.6500,                                                  
DCMS                                              ,NHM                                               ,2012-04-25 00:00:00.000,Agency Temporary Staff Costs                      ,PEG Interactive Media CLOSED                      ,PFJ Recruitment Consultants                       ,PINV      167603                                  ,             476.2800,                                                  
DCMS                                              ,NHM                                               ,2012-04-25 00:00:00.000,Agency Temporary Staff Costs                      ,VE VLE Bookings&Sales                             ,Spring Personnel                                  ,PINV      167609                                  ,            1180.2500,                                                  
DCMS                                              ,NHM                                               ,2012-04-25 00:00:00.000,Agency Temporary Staff Costs                      ,VE VLE Bookings&Sales                             ,Spring Personnel                                  ,PINV      167609                                  ,            1872.0500,                                                  
DCMS                                              ,NHM                                               ,2012-04-25 00:00:00.000,Agency Temporary Staff Costs                      ,VE VLE Bookings&Sales                             ,Spring Personnel                                  ,PINV      167609                                  ,            2578.4600,                                                  
DCMS                                              ,NHM                                               ,2012-04-25 00:00:00.000,Agency Temporary Staff Costs                      ,VE VLE Bookings&Sales                             ,Spring Personnel                                  ,PINV      167609                                  ,            2960.6400,                                                  
DCMS                                              ,NHM                                               ,2012-04-25 00:00:00.000,Agency Temporary Staff Costs                      ,VE VLE Bookings&Sales                             ,Spring Personnel                                  ,PINV      167611                                  ,            1427.3400,                                                  
DCMS                                              ,NHM                                               ,2012-04-25 00:00:00.000,Agency Temporary Staff Costs                      ,VE VLE Bookings&Sales                             ,Spring Personnel                                  ,PINV      167611                                  ,            1567.7500,                                                  
DCMS                                              ,NHM                                               ,2012-04-25 00:00:00.000,Agency Temporary Staff Costs                      ,VE VLE Bookings&Sales                             ,Spring Personnel                                  ,PINV      167611                                  ,            3112.3900,                                                  
DCMS                                              ,NHM                                               ,2012-04-25 00:00:00.000,Agency Temporary Staff Costs                      ,VE VLE Bookings&Sales                             ,Spring Personnel                                  ,PINV      167611                                  ,            3284.6100,                                                  
DCMS                                              ,NHM                                               ,2012-04-25 00:00:00.000,Agency Temporary Staff Costs                      ,VE VLE Welcome&Information                        ,Step Ahead                                        ,PINV      167604                                  ,            3731.8100,                                                  
DCMS                                              ,NHM                                               ,2012-04-25 00:00:00.000,Agency Temporary Staff Costs                      ,VE VLE Welcome&Information                        ,Step Ahead                                        ,PINV      167605                                  ,            3609.0400,                                                  
DCMS                                              ,NHM                                               ,2012-04-25 00:00:00.000,Agency Temporary Staff Costs                      ,VE VLE Welcome&Information                        ,Step Ahead                                        ,PINV      167606                                  ,            5037.5300,                                                  
DCMS                                              ,NHM                                               ,2012-04-25 00:00:00.000,Agency Temporary Staff Costs                      ,VE VLE Welcome&Information                        ,Step Ahead                                        ,PINV      167608                                  ,             757.6800,                                                  
DCMS                                              ,NHM                                               ,2012-04-25 00:00:00.000,Freelancers / Self-employed                       ,PEG Learning Programme Developers                 ,Spectrum Drama                                    ,PINV      167628                                  ,             175.0000,                                                  
DCMS                                              ,NHM                                               ,2012-04-25 00:00:00.000,Freelancers / Self-employed                       ,PEG Learning Programme Developers                 ,Spectrum Drama                                    ,PINV      167628                                  ,             875.0000,                                                  
DCMS                                              ,NHM                                               ,2012-04-25 00:00:00.000,Freelancers / Self-employed                       ,PEG Learning Programme Developers                 ,Spectrum Drama                                    ,PINV      167629                                  ,             100.0000,                                                  
DCMS                                              ,NHM                                               ,2012-04-25 00:00:00.000,Freelancers / Self-employed                       ,PEG Learning Programme Developers                 ,Spectrum Drama                                    ,PINV      167629                                  ,             500.0000,                                                  
DCMS                                              ,NHM                                               ,2012-04-25 00:00:00.000,Irrecoverable VAT                                 ,DCS Finance                                       ,Marks Sattin                                      ,PINV      167645                                  ,               9.0900,                                                  
DCMS                                              ,NHM                                               ,2012-04-25 00:00:00.000,Mobiles/Pagers                                    ,DCS Telephones                                    ,Vodafone Limited                                  ,PINV      167631                                  ,             810.0000,                                                  
DCMS                                              ,NHM                                               ,2012-04-25 00:00:00.000,P/L - Est Irrecoverable VAT R/Costs               ,Estates Management                                ,Vodafone Limited                                  ,PINV      167631                                  ,               5.1500,                                                  
DCMS                                              ,NHM                                               ,2012-04-25 00:00:00.000,P/L - Legal Fees                                  ,DCS Finance                                       ,Farrer &Co                                        ,PINV      167653                                  ,            1820.0000,                                                  
DCMS                                              ,NHM                                               ,2012-05-01 00:00:00.000,Agency Temporary Staff Costs                      ,VE VLE Welcome&Information                        ,Step Ahead                                        ,PINV      167612                                  ,            1021.8800,                                                  
DCMS                                              ,NHM                                               ,2012-05-01 00:00:00.000,Agency Temporary Staff Costs                      ,VE VLE Welcome&Information                        ,Step Ahead                                        ,PINV      167614                                  ,            1123.8200,                                                  
DCMS                                              ,NHM                                               ,2012-05-01 00:00:00.000,Agency Temporary Staff Costs                      ,VE VLE Bookings&Sales                             ,Step Ahead                                        ,PINV      167667                                  ,             111.7200,                                                  
DCMS                                              ,NHM                                               ,2012-05-01 00:00:00.000,Agency Temporary Staff Costs                      ,VE VLE Welcome&Information                        ,Step Ahead                                        ,PINV      167667                                  ,            6754.5900,                                                  
DCMS                                              ,NHM                                               ,2012-05-01 00:00:00.000,B/S - Equipment (Plant & Machinery)               ,PEG Visitor Offer Strat Non Exh Proj              ,Black Cat Displays Ltd                            ,PINV      167730                                  ,            1176.0000,                                                  
DCMS                                              ,NHM                                               ,2012-05-01 00:00:00.000,B/S - Tangible F Assets - L&B - Fees              ,Estates Buildings                                 ,Dannatt Johnson Architects                        ,PINV      167654                                  ,             906.7500,                                                  
DCMS                                              ,NHM                                               ,2012-05-01 00:00:00.000,B/S - Tangible F Assets - L&B - Fees              ,Estates Buildings                                 ,Dannatt Johnson Architects                        ,PINV      167654                                  ,            1836.7500,                                                  
DCMS                                              ,NHM                                               ,2012-05-01 00:00:00.000,Consultancy                                       ,Sci L&A Collections&Reader Services               ,Harvey Nash PLC                                   ,PINV      167709                                  ,             946.0000,                                                  
DCMS                                              ,NHM                                               ,2012-05-01 00:00:00.000,Consultancy                                       ,Sci L&A Collections&Reader Services               ,Harvey Nash PLC                                   ,PINV      167709                                  ,            4730.0000,                                                  
DCMS                                              ,NHM                                               ,2012-05-01 00:00:00.000,DA Events                                         ,VE VLE Bookings&Sales                             ,Music & Arts Security Limited                     ,PINV      167670                                  ,             627.0000,                                                  
DCMS                                              ,NHM                                               ,2012-05-01 00:00:00.000,DA Events                                         ,PEG Directorate & Resources                       ,Payne & Gunter Limited                            ,PINV      167695                                  ,            4993.8000,                                                  
DCMS                                              ,NHM                                               ,2012-05-01 00:00:00.000,DA Events                                         ,PEG Directorate & Resources                       ,White Light (Electrics) Ltd                       ,PINV      167694                                  ,            3450.0000,                                                  
DCMS                                              ,NHM                                               ,2012-05-01 00:00:00.000,Equip Hire & Maintenance                          ,PEG - Development                                 ,Right Document Solutions                          ,PINV      167705                                  ,             634.8500,                                                  
DCMS                                              ,NHM                                               ,2012-05-01 00:00:00.000,Equip Hire & Maintenance (Leases)                 ,Palaeontology Curation                            ,Eltek Ltd                                         ,PINV      167623                                  ,             687.0000,                                                  
DCMS                                              ,NHM                                               ,2012-05-01 00:00:00.000,Equip Hire & Maintenance (Leases)                 ,Palaeontology Curation                            ,Eltek Ltd                                         ,PINV      167625                                  ,            1050.0000,                                                  
DCMS                                              ,NHM                                               ,2012-05-01 00:00:00.000,Equip Hire & Maintenance (Leases)                 ,Estates Management                                ,Right Document Solutions                          ,PINV      167705                                  ,             211.9400,                                                  
DCMS                                              ,NHM                                               ,2012-05-01 00:00:00.000,Equip Hire & Maintenance (Leases)                 ,PEG Prod Project Management                       ,Right Document Solutions                          ,PINV      167705                                  ,             269.5200,                                                  
DCMS                                              ,NHM                                               ,2012-05-01 00:00:00.000,Equip Hire & Maintenance (Leases)                 ,DCS Directorate                                   ,Right Document Solutions                          ,PINV      167705                                  ,             576.6700,                                                  
DCMS                                              ,NHM                                               ,2012-05-01 00:00:00.000,Equip Hire & Maintenance (Leases)                 ,PEG - Communications Central                      ,Right Document Solutions                          ,PINV      167705                                  ,             634.8400,                                                  
DCMS                                              ,NHM                                               ,2012-05-01 00:00:00.000,Equip Hire & Maintenance (Leases)                 ,DCS Human Resources Operations                    ,Right Document Solutions                          ,PINV      167705                                  ,            1127.3200,                                                  
DCMS                                              ,NHM                                               ,2012-05-01 00:00:00.000,Equipment < 5k                                   ,Zoology Facility                                  ,Colin Smith Conservation Limited                  ,PINV      167651                                  ,            2756.9300,                                                  
DCMS                                              ,NHM                                               ,2012-05-01 00:00:00.000,Equipment < 5k                                   ,PEG Learning Programme Developers                 ,Displayways                                       ,PINV      167735                                  ,             560.0000,                                                  
DCMS                                              ,NHM                                               ,2012-05-01 00:00:00.000,Equipment < 5k                                   ,PEG Learning Programme Developers                 ,Displayways                                       ,PINV      167735                                  ,            2800.0000,                                                  
DCMS                                              ,NHM                                               ,2012-05-01 00:00:00.000,Equipment < 5k                                   ,VE Production Engineering                         ,Fercell Engineering                               ,PINV      167739                                  ,             611.6000,                                                  
DCMS                                              ,NHM                                               ,2012-05-01 00:00:00.000,EXF - Travel                                      ,Botany Research                                   ,Key Travel                                        ,PINV      167744                                  ,             818.3900,                                                  
DCMS                                              ,NHM                                               ,2012-05-01 00:00:00.000,Exhibition/Expo Costs                             ,VE Production Display & Conservation              ,LSJ Engineering Ltd                               ,PINV      167668                                  ,            4150.0000,                                                  
DCMS                                              ,NHM                                               ,2012-05-01 00:00:00.000,Freelancers / Self-employed                       ,PEG Innovations / Art Science                     ,The Moving Venue Caterers Ltd                     ,PINV      167751                                  ,            2805.0000,                                                  
DCMS                                              ,NHM                                               ,2012-05-01 00:00:00.000,Hospitality                                       ,PEG Innovations / Art Science                     ,Music & Arts Security Limited                     ,PINV      167682                                  ,             445.5000,                                                  
DCMS                                              ,NHM                                               ,2012-05-01 00:00:00.000,Irrecoverable VAT                                 ,Zoology Admin                                     ,Colin Smith Conservation Limited                  ,PINV      167651                                  ,             225.9600,                                                  
DCMS                                              ,NHM                                               ,2012-05-01 00:00:00.000,Irrecoverable VAT                                 ,Palaeontology Admin                               ,Eltek Ltd                                         ,PINV      167623                                  ,              49.2700,                                                  
DCMS                                              ,NHM                                               ,2012-05-01 00:00:00.000,Irrecoverable VAT                                 ,Palaeontology Admin                               ,Eltek Ltd                                         ,PINV      167625                                  ,              86.0600,                                                  
DCMS                                              ,NHM                                               ,2012-05-01 00:00:00.000,Irrecoverable VAT                                 ,DCS Finance                                       ,Hays Accountancy Personnel                        ,PINV      167697                                  ,               5.5200,                                                  
DCMS                                              ,NHM                                               ,2012-05-01 00:00:00.000,P/L - General Running Costs                       ,Botany Research                                   ,Imagemakers                                       ,PINV      167741                                  ,            1528.5900,                                                  
DCMS                                              ,NHM                                               ,2012-05-01 00:00:00.000,P/L - Members Events Costs                        ,Commerce Visitor Events                           ,Benugo                                            ,PINV      167688                                  ,            3332.7000,                                                  
DCMS                                              ,NHM                                               ,2012-05-01 00:00:00.000,P/L - Postage                                     ,Est Hskpg SK                                      ,Government Car and Despatch Agency                ,PINV      167706                                  ,             715.0000,                                                  
DCMS                                              ,NHM                                               ,2012-05-01 00:00:00.000,P/L - Subscriptions                               ,PEG - Development                                 ,LexisNexis                                        ,PINV      167715                                  ,             431.0000,                                                  
DCMS                                              ,NHM                                               ,2012-05-01 00:00:00.000,P/L -Training Costs                               ,DCS HR Organisational Development                 ,Still HR                                          ,PINV      167743                                  ,             850.0000,                                                  
DCMS                                              ,NHM                                               ,2012-05-01 00:00:00.000,P/L -Training Costs                               ,DCS HR Organisational Development                 ,Video Arts Ltd                                    ,PINV      167701                                  ,            4950.0000,                                                  
DCMS                                              ,NHM                                               ,2012-05-01 00:00:00.000,Printing & stationery                             ,PEG Learning Programme Developers                 ,Witherbys Lithoflow                               ,PINV      167641                                  ,            1594.0000,                                                  
DCMS                                              ,NHM                                               ,2012-05-01 00:00:00.000,Prof. Printing/Publication costs                  ,PEG - Development                                 ,Witherbys Lithoflow                               ,PINV      167698                                  ,            1888.0000,                                                  
DCMS                                              ,NHM                                               ,2012-05-01 00:00:00.000,Professional Services/Fees                        ,DCS HR Health & Safety Unit                       ,Environment Agency                                ,PINV      167725                                  ,            1450.0000,                                                  
DCMS                                              ,NHM                                               ,2012-05-01 00:00:00.000,SS Mercury Calls (Telephones)                     ,S/S - Telephones                                  ,Verizon                                           ,PINV      167716                                  ,            2618.5500,                                                  
DCMS                                              ,NHM                                               ,2012-05-01 00:00:00.000,Telephone Directories                             ,DCS Telephones                                    ,Yell Ltd                                          ,PINV      167672                                  ,             470.0000,                                                  
DCMS                                              ,NHM                                               ,2012-05-01 00:00:00.000,Work In Progress - Publishing                     ,Commerce Publishing                               ,Saxon Digital Services                            ,PINV      167714                                  ,             469.5000,                                                  
DCMS                                              ,NHM                                               ,2012-05-02 00:00:00.000,Agency Temporary Staff Costs                      ,DCS Finance                                       ,Brook Street UK Ltd                               ,PINV      167889                                  ,             543.9000,                                                  
DCMS                                              ,NHM                                               ,2012-05-02 00:00:00.000,Agency Temporary Staff Costs                      ,DCS Finance                                       ,Brook Street UK Ltd                               ,PINV      167890                                  ,             529.2000,                                                  
DCMS                                              ,NHM                                               ,2012-05-02 00:00:00.000,Agency Temporary Staff Costs                      ,DCS ICT (Info Computer Techonology)               ,Certes Computing Ltd                              ,PINV      167832                                  ,            3570.0000,                                                  
DCMS                                              ,NHM                                               ,2012-05-02 00:00:00.000,Agency Temporary Staff Costs                      ,DCS ICT (Info Computer Techonology)               ,Certes Computing Ltd                              ,PINV      167834                                  ,            3750.0000,                                                  
DCMS                                              ,NHM                                               ,2012-05-02 00:00:00.000,Agency Temporary Staff Costs                      ,DCS ICT (Info Computer Techonology)               ,Certes Computing Ltd                              ,PINV      167842                                  ,            5000.0000,                                                  
DCMS                                              ,NHM                                               ,2012-05-02 00:00:00.000,Agency Temporary Staff Costs                      ,DCS ICT (Info Computer Techonology)               ,Certes Computing Ltd                              ,PINV      167862                                  ,            4999.9200,                                                  
DCMS                                              ,NHM                                               ,2012-05-02 00:00:00.000,Agency Temporary Staff Costs                      ,DCS ICT (Info Computer Techonology)               ,Certes Computing Ltd                              ,PINV      167864                                  ,            1120.0000,                                                  
DCMS                                              ,NHM                                               ,2012-05-02 00:00:00.000,Agency Temporary Staff Costs                      ,DCS ICT (Info Computer Techonology)               ,Certes Computing Ltd                              ,PINV      167883                                  ,            4000.0000,                                                  
DCMS                                              ,NHM                                               ,2012-05-02 00:00:00.000,Agency Temporary Staff Costs                      ,DCS ICT (Info Computer Techonology)               ,Certes Computing Ltd                              ,PINV      167885                                  ,             648.3800,                                                  
DCMS                                              ,NHM                                               ,2012-05-02 00:00:00.000,Agency Temporary Staff Costs                      ,DCS ICT (Info Computer Techonology)               ,Eurobase People                                   ,PINV      167865                                  ,            4607.6800,                                                  
DCMS                                              ,NHM                                               ,2012-05-02 00:00:00.000,Agency Temporary Staff Costs                      ,DCS ICT (Info Computer Techonology)               ,Harvey Nash PLC                                   ,PINV      167803                                  ,            5382.0000,                                                  
DCMS                                              ,NHM                                               ,2012-05-02 00:00:00.000,Agency Temporary Staff Costs                      ,DCS ICT (Info Computer Techonology)               ,Harvey Nash PLC                                   ,PINV      167861                                  ,             894.6000,                                                  
DCMS                                              ,NHM                                               ,2012-05-02 00:00:00.000,Agency Temporary Staff Costs                      ,DCS ICT (Info Computer Techonology)               ,Harvey Nash PLC                                   ,PINV      167876                                  ,            3894.6600,                                                  
DCMS                                              ,NHM                                               ,2012-05-02 00:00:00.000,Agency Temporary Staff Costs                      ,DCS ICT (Info Computer Techonology)               ,Harvey Nash PLC                                   ,PINV      167887                                  ,            2811.6000,                                                  
DCMS                                              ,NHM                                               ,2012-05-02 00:00:00.000,Agency Temporary Staff Costs                      ,Palaeontology Admin                               ,Hays Accountancy Personnel                        ,PINV      167879                                  ,             596.0000,                                                  
DCMS                                              ,NHM                                               ,2012-05-02 00:00:00.000,Agency Temporary Staff Costs                      ,Tring Visitor Services (FOH)                      ,Hays Accountancy Personnel                        ,PINV      167955                                  ,             498.5000,                                                  
DCMS                                              ,NHM                                               ,2012-05-02 00:00:00.000,Agency Temporary Staff Costs                      ,PEG - Learning Management                         ,Hays Construction & Property                      ,PINV      167630                                  ,             861.4000,                                                  
DCMS                                              ,NHM                                               ,2012-05-02 00:00:00.000,Agency Temporary Staff Costs                      ,Sci L&A Collections&Reader Services               ,Hays Construction & Property                      ,PINV      167821                                  ,              50.6200,                                                  
DCMS                                              ,NHM                                               ,2012-05-02 00:00:00.000,Agency Temporary Staff Costs                      ,Sci L&A Collections&Reader Services               ,Hays Construction & Property                      ,PINV      167821                                  ,             617.6500,                                                  
DCMS                                              ,NHM                                               ,2012-05-02 00:00:00.000,Agency Temporary Staff Costs                      ,VE Production Special Effects                     ,Spring Personnel                                  ,PINV      167827                                  ,             633.9200,                                                  
DCMS                                              ,NHM                                               ,2012-05-02 00:00:00.000,Agency Temporary Staff Costs                      ,VE Production Special Effects                     ,Spring Personnel                                  ,PINV      167829                                  ,             633.9200,                                                  
DCMS                                              ,NHM                                               ,2012-05-02 00:00:00.000,Agency Temporary Staff Costs                      ,Science Administration Team                       ,Spring Personnel                                  ,PINV      167830                                  ,             652.8000,                                                  
DCMS                                              ,NHM                                               ,2012-05-02 00:00:00.000,Agency Temporary Staff Costs                      ,DCS Finance                                       ,Spring Personnel                                  ,PINV      167917                                  ,             499.7400,                                                  
DCMS                                              ,NHM                                               ,2012-05-02 00:00:00.000,Agency Temporary Staff Costs                      ,DCS Finance                                       ,Spring Personnel                                  ,PINV      167917                                  ,             535.6800,                                                  
DCMS                                              ,NHM                                               ,2012-05-02 00:00:00.000,Agency Temporary Staff Costs                      ,DCS Finance                                       ,Spring Personnel                                  ,PINV      167917                                  ,             586.3000,                                                  
DCMS                                              ,NHM                                               ,2012-05-02 00:00:00.000,Agency Temporary Staff Costs                      ,DCS Finance                                       ,Spring Personnel                                  ,PINV      167917                                  ,             586.8000,                                                  
DCMS                                              ,NHM                                               ,2012-05-02 00:00:00.000,Agency Temporary Staff Costs                      ,DCS Finance                                       ,Spring Personnel                                  ,PINV      167917                                  ,             595.2000,                                                  
DCMS                                              ,NHM                                               ,2012-05-02 00:00:00.000,Agency Temporary Staff Costs                      ,DCS Finance                                       ,Spring Personnel                                  ,PINV      167917                                  ,             925.0500,                                                  
DCMS                                              ,NHM                                               ,2012-05-02 00:00:00.000,Agency Temporary Staff Costs                      ,DCS Finance                                       ,Spring Personnel                                  ,PINV      167943                                  ,             472.7000,                                                  
DCMS                                              ,NHM                                               ,2012-05-02 00:00:00.000,Agency Temporary Staff Costs                      ,DCS Finance                                       ,Spring Personnel                                  ,PINV      167943                                  ,             514.8000,                                                  
DCMS                                              ,NHM                                               ,2012-05-02 00:00:00.000,Agency Temporary Staff Costs                      ,DCS Finance                                       ,Spring Personnel                                  ,PINV      167943                                  ,             558.0000,                                                  
DCMS                                              ,NHM                                               ,2012-05-02 00:00:00.000,Agency Temporary Staff Costs                      ,DCS Finance                                       ,Spring Personnel                                  ,PINV      167943                                  ,             586.8000,                                                  
DCMS                                              ,NHM                                               ,2012-05-02 00:00:00.000,Agency Temporary Staff Costs                      ,DCS Finance                                       ,Spring Personnel                                  ,PINV      167943                                  ,             689.9100,                                                  
DCMS                                              ,NHM                                               ,2012-05-02 00:00:00.000,Agency Temporary Staff Costs                      ,DCS Finance                                       ,Spring Personnel                                  ,PINV      167943                                  ,            1110.0600,                                                  
DCMS                                              ,NHM                                               ,2012-05-02 00:00:00.000,Agency Temporary Staff Costs                      ,DCS Finance                                       ,Spring Personnel                                  ,PINV      167978                                  ,             247.6600,                                                  
DCMS                                              ,NHM                                               ,2012-05-02 00:00:00.000,Agency Temporary Staff Costs                      ,DCS Finance                                       ,Spring Personnel                                  ,PINV      167978                                  ,             514.8000,                                                  
DCMS                                              ,NHM                                               ,2012-05-02 00:00:00.000,Agency Temporary Staff Costs                      ,DCS Finance                                       ,Spring Personnel                                  ,PINV      167978                                  ,             528.2400,                                                  
DCMS                                              ,NHM                                               ,2012-05-02 00:00:00.000,Agency Temporary Staff Costs                      ,DCS Finance                                       ,Spring Personnel                                  ,PINV      167978                                  ,             535.6800,                                                  
DCMS                                              ,NHM                                               ,2012-05-02 00:00:00.000,Agency Temporary Staff Costs                      ,DCS Finance                                       ,Spring Personnel                                  ,PINV      167978                                  ,             586.8000,                                                  
DCMS                                              ,NHM                                               ,2012-05-02 00:00:00.000,Agency Temporary Staff Costs                      ,DCS Finance                                       ,Spring Personnel                                  ,PINV      167978                                  ,             685.4900,                                                  
DCMS                                              ,NHM                                               ,2012-05-02 00:00:00.000,Agency Temporary Staff Costs                      ,DCS Finance                                       ,Spring Personnel                                  ,PINV      167978                                  ,            1057.2000,                                                  
DCMS                                              ,NHM                                               ,2012-05-02 00:00:00.000,B/S - Equipment (Plant & Machinery)               ,VE Production Special Effects                     ,Central c.n.c. machinery Ltd                      ,PINV      167957                                  ,           10388.6000,                                                  
DCMS                                              ,NHM                                               ,2012-05-02 00:00:00.000,B/S - Equipment (Plant & Machinery)               ,Palaeontology Research                            ,Olympus Medical                                   ,PINV      167806                                  ,           22593.3100,                                                  
DCMS                                              ,NHM                                               ,2012-05-02 00:00:00.000,B/S - Equipment (Plant & Machinery)               ,Palaeontology Research                            ,Olympus Medical                                   ,PINV      167806                                  ,          112966.5400,                                                  
DCMS                                              ,NHM                                               ,2012-05-02 00:00:00.000,B/S - Tangible F Assets - L&B - Cons              ,Estates Buildings                                 ,ISG Interior Services Group Plc                   ,PINV      167853                                  ,            4876.3000,                                                  
DCMS                                              ,NHM                                               ,2012-05-02 00:00:00.000,B/S - Tangible F Assets - L&B - Fees              ,Estates Buildings                                 ,Adams Environmental Ltd                           ,PINV      167952                                  ,             675.0000,                                                  
DCMS                                              ,NHM                                               ,2012-05-02 00:00:00.000,B/S - Tangible F Assets - L&B - Fees              ,Estates Buildings                                 ,Adams Environmental Ltd                           ,PINV      167953                                  ,            1080.0000,                                                  
DCMS                                              ,NHM                                               ,2012-05-02 00:00:00.000,Carpets/Flooring repairs/replacement              ,Estates Furniture                                 ,Teco Interiors Limited                            ,PINV      167875                                  ,             570.8300,                                                  
DCMS                                              ,NHM                                               ,2012-05-02 00:00:00.000,Consultancy DNU                                   ,Zoology Curation                                  ,New Alchemy                                       ,PINV      167906                                  ,             500.0000,                                                  
DCMS                                              ,NHM                                               ,2012-05-02 00:00:00.000,Consultancy DNU                                   ,Est Security SK                                   ,NMSI Enterprises Ltd                              ,PINV      167968                                  ,            1570.9100,                                                  
DCMS                                              ,NHM                                               ,2012-05-02 00:00:00.000,COS Publishing / stock adj                        ,Commerce Publishing                               ,Frances Lincoln Ltd                               ,PINV      167774                                  ,             238.4100,                                                  
DCMS                                              ,NHM                                               ,2012-05-02 00:00:00.000,COS Publishing / stock adj                        ,Commerce Publishing                               ,Frances Lincoln Ltd                               ,PINV      167774                                  ,             711.1600,                                                  
DCMS                                              ,NHM                                               ,2012-05-02 00:00:00.000,COS Publishing / stock adj                        ,Commerce Publishing                               ,Frances Lincoln Ltd                               ,PINV      167774                                  ,            1287.2100,                                                  
DCMS                                              ,NHM                                               ,2012-05-02 00:00:00.000,EXF Professional Fees                             ,PEG - Development                                 ,Community Counselling Service Ltd                 ,PINV      167886                                  ,            9000.0000,                                                  
DCMS                                              ,NHM                                               ,2012-05-02 00:00:00.000,Exhibition Production                             ,PEG Vis Serv Temporary Exhibitions                ,Mansfield Wahl                                    ,PINV      167926                                  ,             584.0000,                                                  
DCMS                                              ,NHM                                               ,2012-05-02 00:00:00.000,Exhibition Production                             ,PEG Vis Serv Temporary Exhibitions                ,Mansfield Wahl                                    ,PINV      167926                                  ,             584.0000,                                                  
DCMS                                              ,NHM                                               ,2012-05-02 00:00:00.000,Exhibition Production                             ,PEG Vis Serv Temporary Exhibitions                ,Mansfield Wahl                                    ,PINV      167928                                  ,             496.0000,                                                  
DCMS                                              ,NHM                                               ,2012-05-02 00:00:00.000,Exhibition Production                             ,PEG Vis Serv Temporary Exhibitions                ,Mansfield Wahl                                    ,PINV      167929                                  ,            3744.0000,                                                  
DCMS                                              ,NHM                                               ,2012-05-02 00:00:00.000,Hospitality                                       ,Science Directorate                               ,Benugo                                            ,PINV      167757                                  ,             625.8000,                                                  
DCMS                                              ,NHM                                               ,2012-05-02 00:00:00.000,Irrecoverable VAT                                 ,DCS Finance                                       ,Benugo                                            ,PINV      167757                                  ,               3.9800,                                                  
DCMS                                              ,NHM                                               ,2012-05-02 00:00:00.000,Irrecoverable VAT                                 ,DCS Finance                                       ,Brook Street UK Ltd                               ,PINV      167889                                  ,               3.4600,                                                  
DCMS                                              ,NHM                                               ,2012-05-02 00:00:00.000,Irrecoverable VAT                                 ,DCS Finance                                       ,Brook Street UK Ltd                               ,PINV      167890                                  ,               3.3700,                                                  
DCMS                                              ,NHM                                               ,2012-05-02 00:00:00.000,Irrecoverable VAT                                 ,DCS Finance                                       ,Canon (UK) Ltd                                    ,PINV      167911                                  ,               5.0200,                                                  
DCMS                                              ,NHM                                               ,2012-05-02 00:00:00.000,Irrecoverable VAT                                 ,DCS Finance                                       ,Certes Computing Ltd                              ,PINV      167832                                  ,              22.7100,                                                  
DCMS                                              ,NHM                                               ,2012-05-02 00:00:00.000,Irrecoverable VAT                                 ,DCS Finance                                       ,Certes Computing Ltd                              ,PINV      167834                                  ,              23.8500,                                                  
DCMS                                              ,NHM                                               ,2012-05-02 00:00:00.000,Irrecoverable VAT                                 ,DCS Finance                                       ,Certes Computing Ltd                              ,PINV      167842                                  ,              31.8000,                                                  
DCMS                                              ,NHM                                               ,2012-05-02 00:00:00.000,Irrecoverable VAT                                 ,DCS Finance                                       ,Certes Computing Ltd                              ,PINV      167862                                  ,              31.8000,                                                  
DCMS                                              ,NHM                                               ,2012-05-02 00:00:00.000,Irrecoverable VAT                                 ,DCS Finance                                       ,Certes Computing Ltd                              ,PINV      167864                                  ,               7.1200,                                                  
DCMS                                              ,NHM                                               ,2012-05-02 00:00:00.000,Irrecoverable VAT                                 ,DCS Finance                                       ,Certes Computing Ltd                              ,PINV      167883                                  ,              25.4400,                                                  
DCMS                                              ,NHM                                               ,2012-05-02 00:00:00.000,Irrecoverable VAT                                 ,DCS Finance                                       ,Certes Computing Ltd                              ,PINV      167885                                  ,               4.1200,                                                  
DCMS                                              ,NHM                                               ,2012-05-02 00:00:00.000,Irrecoverable VAT                                 ,DCS Finance                                       ,Childcare Vouchers Lrtd                           ,PINV      167956                                  ,               1.6400,                                                  
DCMS                                              ,NHM                                               ,2012-05-02 00:00:00.000,Irrecoverable VAT                                 ,DCS Finance                                       ,Chilton Media Law                                 ,PINV      167920                                  ,              29.5500,                                                  
DCMS                                              ,NHM                                               ,2012-05-02 00:00:00.000,Irrecoverable VAT                                 ,DCS Finance                                       ,Community Counselling Service Ltd                 ,PINV      167886                                  ,              57.2400,                                                  
DCMS                                              ,NHM                                               ,2012-05-02 00:00:00.000,Irrecoverable VAT                                 ,Entomology Admin                                  ,Emcor Facility Services Ltd                       ,PINV      167781                                  ,              53.4800,                                                  
DCMS                                              ,NHM                                               ,2012-05-02 00:00:00.000,Irrecoverable VAT                                 ,DCS Finance                                       ,Eurobase People                                   ,PINV      167865                                  ,              29.3000,                                                  
DCMS                                              ,NHM                                               ,2012-05-02 00:00:00.000,Irrecoverable VAT                                 ,DCS Finance                                       ,Farrer &Co                                        ,PINV      167754                                  ,              44.2100,                                                  
DCMS                                              ,NHM                                               ,2012-05-02 00:00:00.000,Irrecoverable VAT                                 ,DCS Finance                                       ,Glide Technologies                                ,PINV      167905                                  ,              71.2300,                                                  
DCMS                                              ,NHM                                               ,2012-05-02 00:00:00.000,Irrecoverable VAT                                 ,Entomology Admin                                  ,Hamilton Robotics Ltd                             ,PINV      167840                                  ,             834.2300,                                                  
DCMS                                              ,NHM                                               ,2012-05-02 00:00:00.000,Irrecoverable VAT                                 ,DCS Finance                                       ,Happy Computers                                   ,PINV      167903                                  ,               3.1800,                                                  
DCMS                                              ,NHM                                               ,2012-05-02 00:00:00.000,Irrecoverable VAT                                 ,DCS Finance                                       ,Harvey Nash PLC                                   ,PINV      167803                                  ,              34.2300,                                                  
DCMS                                              ,NHM                                               ,2012-05-02 00:00:00.000,Irrecoverable VAT                                 ,DCS Finance                                       ,Harvey Nash PLC                                   ,PINV      167861                                  ,               5.6900,                                                  
DCMS                                              ,NHM                                               ,2012-05-02 00:00:00.000,Irrecoverable VAT                                 ,DCS Finance                                       ,Harvey Nash PLC                                   ,PINV      167876                                  ,              24.7700,                                                  
DCMS                                              ,NHM                                               ,2012-05-02 00:00:00.000,Irrecoverable VAT                                 ,DCS Finance                                       ,Harvey Nash PLC                                   ,PINV      167887                                  ,              17.8800,                                                  
DCMS                                              ,NHM                                               ,2012-05-02 00:00:00.000,Irrecoverable VAT                                 ,Palaeontology Admin                               ,Hays Accountancy Personnel                        ,PINV      167879                                  ,              48.8500,                                                  
DCMS                                              ,NHM                                               ,2012-05-02 00:00:00.000,Irrecoverable VAT                                 ,DCS Finance                                       ,IonActive Consulting                              ,PINV      167844                                  ,               7.6300,                                                  
DCMS                                              ,NHM                                               ,2012-05-02 00:00:00.000,Irrecoverable VAT                                 ,Zoology Admin                                     ,Leica Microsystems (UK) Ltd                       ,PINV      167837                                  ,             377.2100,                                                  
DCMS                                              ,NHM                                               ,2012-05-02 00:00:00.000,Irrecoverable VAT                                 ,DCS Finance                                       ,Neos Networks Limited                             ,PINV      167847                                  ,              16.3100,                                                  
DCMS                                              ,NHM                                               ,2012-05-02 00:00:00.000,Irrecoverable VAT                                 ,Zoology Admin                                     ,New Alchemy                                       ,PINV      167906                                  ,              40.9800,                                                  
DCMS                                              ,NHM                                               ,2012-05-02 00:00:00.000,Irrecoverable VAT                                 ,DCS Finance                                       ,NMSI Enterprises Ltd                              ,PINV      167968                                  ,               9.9900,                                                  
DCMS                                              ,NHM                                               ,2012-05-02 00:00:00.000,Irrecoverable VAT                                 ,Mineralogy Admin                                  ,Office Depot (Guilbert UK Ltd)                    ,PINV      167752                                  ,               1.6500,                                                  
DCMS                                              ,NHM                                               ,2012-05-02 00:00:00.000,Irrecoverable VAT                                 ,Entomology Admin                                  ,Office Depot (Guilbert UK Ltd)                    ,PINV      167752                                  ,               2.7900,                                                  
DCMS                                              ,NHM                                               ,2012-05-02 00:00:00.000,MF - General Running Costs                        ,Science Directorate                               ,Hamptons International                            ,PINV      167961                                  ,            1733.3300,                                                  
DCMS                                              ,NHM                                               ,2012-05-02 00:00:00.000,MF - General Running Costs                        ,PEG Learning Programme Developers                 ,Newcastle City Council                            ,PINV      167923                                  ,            3071.8100,                                                  
DCMS                                              ,NHM                                               ,2012-05-02 00:00:00.000,P/L - Equipment & Related Costs                   ,Combined Heat & Power unit                        ,Vital Energi                                      ,PINV      167965                                  ,           60555.5500,                                                  
DCMS                                              ,NHM                                               ,2012-05-02 00:00:00.000,P/L - Est  Electricity                            ,Estates Utilities & Rents                         ,Southern Electric                                 ,PINV      167787                                  ,            4444.2000,                                                  
DCMS                                              ,NHM                                               ,2012-05-02 00:00:00.000,P/L - Est  Electricity                            ,Estates Utilities & Rents                         ,Southern Electric                                 ,PINV      167789                                  ,            2982.0500,                                                  
DCMS                                              ,NHM                                               ,2012-05-02 00:00:00.000,P/L - Est Gas                                     ,Estates Utilities & Rents                         ,Gazprom Marketing & Trading Retail L              ,PINV      167764                                  ,           10151.9100,                                                  
DCMS                                              ,NHM                                               ,2012-05-02 00:00:00.000,P/L - Est Gas                                     ,Estates Utilities & Rents                         ,Gazprom Marketing & Trading Retail L              ,PINV      167765                                  ,            3519.7600,                                                  
DCMS                                              ,NHM                                               ,2012-05-02 00:00:00.000,P/L - Est Irrecoverable VAT R/Costs               ,Estates Management                                ,Allstar Business Solutions Ltd                    ,PINV      167901                                  ,               2.9500,                                                  
DCMS                                              ,NHM                                               ,2012-05-02 00:00:00.000,P/L - Est Irrecoverable VAT R/Costs               ,Estates Management                                ,Arnold Clark Finance Limited                      ,PINV      167904                                  ,               4.2900,                                                  
DCMS                                              ,NHM                                               ,2012-05-02 00:00:00.000,P/L - Est Irrecoverable VAT R/Costs               ,Estates Management                                ,Drivers Jonas Deloitte                            ,PINV      167871                                  ,              14.7200,                                                  
DCMS                                              ,NHM                                               ,2012-05-02 00:00:00.000,P/L - Est Irrecoverable VAT R/Costs               ,Estates Management                                ,Emcor Facility Services Ltd                       ,PINV      167777                                  ,             978.4900,                                                  
DCMS                                              ,NHM                                               ,2012-05-02 00:00:00.000,P/L - Est Irrecoverable VAT R/Costs               ,Estates Management                                ,Emcor Facility Services Ltd                       ,PINV      167780                                  ,               3.6700,                                                  
DCMS                                              ,NHM                                               ,2012-05-02 00:00:00.000,P/L - Est Irrecoverable VAT R/Costs               ,Estates Management                                ,Emcor Facility Services Ltd                       ,PINV      167783                                  ,               4.1500,                                                  
DCMS                                              ,NHM                                               ,2012-05-02 00:00:00.000,P/L - Est Irrecoverable VAT R/Costs               ,Estates Management                                ,Emcor Facility Services Ltd                       ,PINV      167784                                  ,              61.9300,                                                  
DCMS                                              ,NHM                                               ,2012-05-02 00:00:00.000,P/L - Est Irrecoverable VAT R/Costs               ,Estates Management                                ,Emcor Facility Services Ltd                       ,PINV      167785                                  ,              70.8600,                                                  
DCMS                                              ,NHM                                               ,2012-05-02 00:00:00.000,P/L - Est Irrecoverable VAT R/Costs               ,Estates Management                                ,Emcor Facility Services Ltd                       ,PINV      167786                                  ,              36.1900,                                                  
DCMS                                              ,NHM                                               ,2012-05-02 00:00:00.000,P/L - Est Irrecoverable VAT R/Costs               ,Estates Management                                ,Farrer &Co                                        ,PINV      167754                                  ,               0.2600,                                                  
DCMS                                              ,NHM                                               ,2012-05-02 00:00:00.000,P/L - Est Irrecoverable VAT R/Costs               ,Estates Management                                ,Mass                                              ,PINV      167939                                  ,              15.7500,                                                  
DCMS                                              ,NHM                                               ,2012-05-02 00:00:00.000,P/L - Est Irrecoverable VAT R/Costs               ,Estates Management                                ,Office Depot (Guilbert UK Ltd)                    ,PINV      167752                                  ,               7.5700,                                                  
DCMS                                              ,NHM                                               ,2012-05-02 00:00:00.000,P/L - Est Irrecoverable VAT R/Costs               ,Estates Management                                ,Teco Interiors Limited                            ,PINV      167875                                  ,               3.6300,                                                  
DCMS                                              ,NHM                                               ,2012-05-02 00:00:00.000,P/L - Est Irrecoverable VAT R/Costs               ,Estates Management                                ,Wilson James Limited                              ,PINV      167908                                  ,             937.7500,                                                  
DCMS                                              ,NHM                                               ,2012-05-02 00:00:00.000,P/L - Est Water/Sewage                            ,Estates Engineering                               ,Emcor Facility Services Ltd                       ,PINV      167780                                  ,             577.7000,                                                  
DCMS                                              ,NHM                                               ,2012-05-02 00:00:00.000,P/L - Est Water/Sewage                            ,Estates Engineering                               ,Emcor Facility Services Ltd                       ,PINV      167786                                  ,             361.8800,                                                  
DCMS                                              ,NHM                                               ,2012-05-02 00:00:00.000,P/L - Fundraising Expenditure                     ,PEG - Development                                 ,Benugo                                            ,PINV      167756                                  ,            1049.8800,                                                  
DCMS                                              ,NHM                                               ,2012-05-02 00:00:00.000,P/L - General Running Costs                       ,Botany Research                                   ,Marquees Direct Ltd                               ,PINV      167949                                  ,             682.9800,                                                  
DCMS                                              ,NHM                                               ,2012-05-02 00:00:00.000,P/L - General Running Costs                       ,Botany Research                                   ,Marquees Direct Ltd                               ,PINV      167949                                  ,            3414.8900,                                                  
DCMS                                              ,NHM                                               ,2012-05-02 00:00:00.000,P/L - General Running Costs                       ,Palaeontology Research                            ,Smooth Events Management Ltd                      ,PINV      167912                                  ,             527.2500,                                                  
DCMS                                              ,NHM                                               ,2012-05-02 00:00:00.000,P/L - General Running Costs                       ,Palaeontology Research                            ,Smooth Events Management Ltd                      ,PINV      167912                                  ,            2636.2500,                                                  
DCMS                                              ,NHM                                               ,2012-05-02 00:00:00.000,P/L - General Running Costs                       ,Palaeontology Research                            ,Smooth Events Management Ltd                      ,PINV      167954                                  ,             527.2500,                                                  
DCMS                                              ,NHM                                               ,2012-05-02 00:00:00.000,P/L - General Running Costs                       ,Palaeontology Research                            ,Smooth Events Management Ltd                      ,PINV      167954                                  ,            2636.2500,                                                  
DCMS                                              ,NHM                                               ,2012-05-02 00:00:00.000,P/L - Hospitality                                 ,Mineralogy Research                               ,Benugo                                            ,PINV      167757                                  ,              56.0400,                                                  
DCMS                                              ,NHM                                               ,2012-05-02 00:00:00.000,Professional Services/Fees                        ,PEG Vis Serv Temporary Exhibitions                ,Baker Mallett                                     ,PINV      167866                                  ,             783.0000,                                                  
DCMS                                              ,NHM                                               ,2012-05-02 00:00:00.000,Professional Services/Fees                        ,Estates Buildings                                 ,Drivers Jonas Deloitte                            ,PINV      167871                                  ,             335.0000,                                                  
DCMS                                              ,NHM                                               ,2012-05-02 00:00:00.000,Professional Services/Fees                        ,Estates Buildings                                 ,Drivers Jonas Deloitte                            ,PINV      167871                                  ,            2313.8000,                                                  
DCMS                                              ,NHM                                               ,2012-05-02 00:00:00.000,Professional Services/Fees                        ,Estates Buildings                                 ,Fothergill & Company                              ,PINV      167804                                  ,            1523.5000,                                                  
DCMS                                              ,NHM                                               ,2012-05-02 00:00:00.000,Professional Services/Fees                        ,PEG Vis Serv Temporary Exhibitions                ,Fothergill & Company                              ,PINV      167896                                  ,            1281.1300,                                                  
DCMS                                              ,NHM                                               ,2012-05-02 00:00:00.000,Professional Services/Fees                        ,DCS HR Health & Safety Unit                       ,IonActive Consulting                              ,PINV      167844                                  ,            1200.0000,                                                  
DCMS                                              ,NHM                                               ,2012-05-02 00:00:00.000,Professional Services/Fees                        ,PEG Visitor Offer Strat Non Exh Proj              ,Martin Bazley & Associates                        ,PINV      167755                                  ,            1000.0000,                                                  
DCMS                                              ,NHM                                               ,2012-05-02 00:00:00.000,Professional Services/Fees                        ,DCS Finance                                       ,Systems Accountants Limited                       ,PINV      167796                                  ,            1000.0000,                                                  
DCMS                                              ,NHM                                               ,2012-05-02 00:00:00.000,Recruitment Costs & Placement Fees                ,DCS Human Resources Operations                    ,Disclosure Scotland                               ,PINV      167860                                  ,             650.0000,                                                  
DCMS                                              ,NHM                                               ,2012-05-02 00:00:00.000,RM Call Out Charges                               ,Estates Engineering                               ,Emcor Facility Services Ltd                       ,PINV      167786                                  ,             147.6000,                                                  
DCMS                                              ,NHM                                               ,2012-05-02 00:00:00.000,Security Alarm / CCTV Maintenance                 ,Estates Engineering                               ,Emcor Facility Services Ltd                       ,PINV      167786                                  ,             156.9600,                                                  
DCMS                                              ,NHM                                               ,2012-05-02 00:00:00.000,Security Contract Costs                           ,Est Security SK                                   ,Wilson James Limited                              ,PINV      167908                                  ,           17778.3200,                                                  
DCMS                                              ,NHM                                               ,2012-05-02 00:00:00.000,Security Contract Costs                           ,Est Security SK                                   ,Wilson James Limited                              ,PINV      167908                                  ,          147444.7600,                                                  
DCMS                                              ,NHM                                               ,2012-05-02 00:00:00.000,Specimen Conservation                             ,Sci L&A Collections&Reader Services               ,Secol Ltd                                         ,PINV      167969                                  ,             118.7700,                                                  
DCMS                                              ,NHM                                               ,2012-05-02 00:00:00.000,Specimen Conservation                             ,Sci L&A Collections&Reader Services               ,Secol Ltd                                         ,PINV      167969                                  ,             593.8600,                                                  
DCMS                                              ,NHM                                               ,2012-05-02 00:00:00.000,SS Agency Temp Staff Costs                        ,S/S - Telephones                                  ,Real Staffing Group Ltd                           ,PINV      167814                                  ,            1514.3400,                                                  
DCMS                                              ,NHM                                               ,2012-05-02 00:00:00.000,SS Agency Temp Staff Costs                        ,S/S - Telephones                                  ,Real Staffing Group Ltd                           ,PINV      167815                                  ,            1566.5600,                                                  
DCMS                                              ,NHM                                               ,2012-05-02 00:00:00.000,SS Agency Temp Staff Costs                        ,S/S - Telephones                                  ,Real Staffing Group Ltd                           ,PINV      167817                                  ,            1879.8700,                                                  
DCMS                                              ,NHM                                               ,2012-05-02 00:00:00.000,SS Agency Temp Staff Costs                        ,S/S - Telephones                                  ,Real Staffing Group Ltd                           ,PINV      167818                                  ,            1540.4500,                                                  
DCMS                                              ,NHM                                               ,2012-05-02 00:00:00.000,SS Agency Temp Staff Costs                        ,S/S - Telephones                                  ,Real Staffing Group Ltd                           ,PINV      167819                                  ,            1879.8700,                                                  
DCMS                                              ,NHM                                               ,2012-05-02 00:00:00.000,SS Agency Temp Staff Costs                        ,S/S - Telephones                                  ,Real Staffing Group Ltd                           ,PINV      167870                                  ,            1905.9800,                                                  
DCMS                                              ,NHM                                               ,2012-05-02 00:00:00.000,SS Agency Temp Staff Costs                        ,S/S - Telephones                                  ,Real Staffing Group Ltd                           ,PINV      167874                                  ,            1566.5600,                                                  
DCMS                                              ,NHM                                               ,2012-05-02 00:00:00.000,SS Efficiency Savings (CHP)                       ,Combined Heat & Power unit                        ,Vital Energi                                      ,PINV      167801                                  ,           76250.0000,                                                  
DCMS                                              ,NHM                                               ,2012-05-02 00:00:00.000,SS Electricity                                    ,S/S - HV Ring Main                                ,Southern Electric                                 ,PINV      167788                                  ,           43837.1300,                                                  
DCMS                                              ,NHM                                               ,2012-05-02 00:00:00.000,SS Electricity                                    ,S/S - HV Ring Main                                ,Southern Electric                                 ,PINV      167790                                  ,            9533.3100,                                                  
DCMS                                              ,NHM                                               ,2012-05-02 00:00:00.000,SS Electricity                                    ,S/S - HV Ring Main                                ,Southern Electric                                 ,PINV      167791                                  ,           46611.1800,                                                  
DCMS                                              ,NHM                                               ,2012-05-02 00:00:00.000,SS Electricity                                    ,S/S - HV Ring Main                                ,Southern Electric                                 ,PINV      167792                                  ,           21726.9100,                                                  
DCMS                                              ,NHM                                               ,2012-05-02 00:00:00.000,SS Gas (CHP)                                      ,Combined Heat & Power unit                        ,Gazprom Marketing & Trading Retail L              ,PINV      167762                                  ,           96759.3700,                                                  
DCMS                                              ,NHM                                               ,2012-05-02 00:00:00.000,Staff and Corporate Gifts                         ,PEG Internal Comms                                ,Rocket Badge Company                              ,PINV      167772                                  ,            1600.0000,                                                  
DCMS                                              ,NHM                                               ,2012-05-02 00:00:00.000,Tools Purchased                                   ,VE Production Engineering                         ,GV Multi-media                                    ,PINV      167963                                  ,            1645.0000,                                                  
DCMS                                              ,NHM                                               ,2012-05-02 00:00:00.000,Vehicle Fuel Purchases                            ,Estates Stationery & Transport                    ,Allstar Business Solutions Ltd                    ,PINV      167901                                  ,             464.4800,                                                  
DCMS                                              ,NHM                                               ,2012-05-02 00:00:00.000,Vehicle Hire                                      ,Estates Stationery & Transport                    ,Arnold Clark Finance Limited                      ,PINV      167904                                  ,             674.7600,                                                  
DCMS                                              ,NHM                                               ,2012-05-08 00:00:00.000,P/L -Training Costs                               ,DCS HR Organisational Development                 ,NATURAL HISTORY MUSEUM                            ,PGPC        5148                                  ,              69.3000,                                                  
DCMS                                              ,NHM                                               ,2012-05-08 00:00:00.000,P/L -Training Costs                               ,DCS HR Organisational Development                 ,NATURAL HISTORY MUSEUM                            ,PGPC        5148                                  ,              93.0000,                                                  
DCMS                                              ,NHM                                               ,2012-05-08 00:00:00.000,P/L -Training Costs                               ,DCS HR Organisational Development                 ,BENUGO                                            ,PGPC        5148                                  ,               1.9800,                                                  
DCMS                                              ,NHM                                               ,2012-05-08 00:00:00.000,P/L -Training Costs                               ,DCS HR Organisational Development                 ,BENUGO                                            ,PGPC        5148                                  ,               3.8400,                                                  
DCMS                                              ,NHM                                               ,2012-05-08 00:00:00.000,P/L -Training Costs                               ,DCS HR Organisational Development                 ,BENUGO                                            ,PGPC        5148                                  ,               6.0000,                                                  
DCMS                                              ,NHM                                               ,2012-05-08 00:00:00.000,P/L -Training Costs                               ,DCS HR Organisational Development                 ,DAVID GAME COLLEGE                                ,PGPC        5148                                  ,             612.0000,                                                  
DCMS                                              ,NHM                                               ,2012-05-08 00:00:00.000,P/L -Training Costs                               ,DCS HR Organisational Development                 ,NATURAL HISTORY MUSEUM                            ,PGPC        5148                                  ,               9.0000,                                                  
DCMS                                              ,NHM                                               ,2012-05-08 00:00:00.000,P/L -Training Costs                               ,DCS HR Organisational Development                 ,NATURAL HISTORY MUSEUM                            ,PGPC        5148                                  ,               9.3000,                                                  
DCMS                                              ,NHM                                               ,2012-05-08 00:00:00.000,P/L - Serials                                     ,Sci L&A Collections&Reader Services               ,MICROPRESS                                        ,PGPC        5133                                  ,             877.6400,                                                  
DCMS                                              ,NHM                                               ,2012-05-08 00:00:00.000,P/L - Serials                                     ,Sci L&A Collections&Reader Services               ,PAYPAL  CAPTAINCOOK                               ,PGPC        5133                                  ,              14.0000,                                                  
DCMS                                              ,NHM                                               ,2012-05-08 00:00:00.000,P/L - Serials                                     ,Sci L&A Collections&Reader Services               ,PAYPAL  NPTS                                      ,PGPC        5133                                  ,              25.0000,                                                  
DCMS                                              ,NHM                                               ,2012-05-08 00:00:00.000,P/L -Training Costs                               ,DCS HR Organisational Development                 ,Amazon  Mktplce EU-UK                             ,PGPC        5148                                  ,               7.8700,                                                  
DCMS                                              ,NHM                                               ,2012-05-08 00:00:00.000,P/L -Training Costs                               ,DCS HR Organisational Development                 ,Amazon  Mktplce EU-UK                             ,PGPC        5148                                  ,              14.5200,                                                  
DCMS                                              ,NHM                                               ,2012-05-08 00:00:00.000,P/L -Training Costs                               ,DCS HR Organisational Development                 ,Amazon EU                                         ,PGPC        5148                                  ,               8.9900,                                                  
DCMS                                              ,NHM                                               ,2012-05-08 00:00:00.000,P/L - Members Events Costs                        ,Commerce Visitor Events                           ,WESTONE CARS                                      ,PGPC        5157                                  ,              64.1000,                                                  
DCMS                                              ,NHM                                               ,2012-05-08 00:00:00.000,P/L - Members Events Costs                        ,Commerce Visitor Events                           ,WESTONE CARS                                      ,PGPC        5157                                  ,              65.8500,                                                  
DCMS                                              ,NHM                                               ,2012-05-08 00:00:00.000,P/L - Members Events Costs                        ,Commerce Visitor Events                           ,WESTONE CARS                                      ,PGPC        5157                                  ,              66.8500,                                                  
DCMS                                              ,NHM                                               ,2012-05-08 00:00:00.000,P/L - Members Events Costs                        ,Commerce Visitor Events                           ,WESTONE CARS                                      ,PGPC        5157                                  ,              70.2000,                                                  
DCMS                                              ,NHM                                               ,2012-05-08 00:00:00.000,P/L - Members Events Costs                        ,Commerce Visitor Events                           ,WESTONE CARS                                      ,PGPC        5157                                  ,              81.3000,                                                  
DCMS                                              ,NHM                                               ,2012-05-08 00:00:00.000,P/L - Members Magazine Costs                      ,Commerce Memberships                              ,THE PATENT OFFICE                                 ,PGPC        5157                                  ,             200.0000,                                                  
DCMS                                              ,NHM                                               ,2012-05-08 00:00:00.000,P/L - Members Events Costs                        ,Commerce Visitor Events                           ,THE HYDE PARK OFFICE                              ,PGPC        5157                                  ,             120.0000,                                                  
DCMS                                              ,NHM                                               ,2012-05-08 00:00:00.000,P/L - Members Events Costs                        ,Commerce Visitor Events                           ,WESTONE CARS                                      ,PGPC        5157                                  ,              21.2000,                                                  
DCMS                                              ,NHM                                               ,2012-05-08 00:00:00.000,P/L - Members Events Costs                        ,Commerce Visitor Events                           ,WESTONE CARS                                      ,PGPC        5157                                  ,              21.2500,                                                  
DCMS                                              ,NHM                                               ,2012-05-08 00:00:00.000,P/L - Members Events Costs                        ,Commerce Visitor Events                           ,WESTONE CARS                                      ,PGPC        5157                                  ,              28.4500,                                                  
DCMS                                              ,NHM                                               ,2012-05-08 00:00:00.000,P/L - Members Events Costs                        ,Commerce Visitor Events                           ,WESTONE CARS                                      ,PGPC        5157                                  ,              30.5500,                                                  
DCMS                                              ,NHM                                               ,2012-05-08 00:00:00.000,P/L - Members Events Costs                        ,Commerce Visitor Events                           ,WESTONE CARS                                      ,PGPC        5157                                  ,              42.4500,                                                  
DCMS                                              ,NHM                                               ,2012-05-08 00:00:00.000,P/L - Members Events Costs                        ,Commerce Visitor Events                           ,BOOKERECOMM                                       ,PGPC        5157                                  ,             164.4600,                                                  
DCMS                                              ,NHM                                               ,2012-05-08 00:00:00.000,P/L - Members Events Costs                        ,Commerce Visitor Events                           ,JS ONLINE GROCERY                                 ,PGPC        5157                                  ,             141.3100,                                                  
DCMS                                              ,NHM                                               ,2012-05-08 00:00:00.000,P/L - Members Events Costs                        ,Commerce Visitor Events                           ,PAYPAL  CJN UK LTD                                ,PGPC        5157                                  ,             119.9700,                                                  
DCMS                                              ,NHM                                               ,2012-05-08 00:00:00.000,P/L - Members Events Costs                        ,Commerce Visitor Events                           ,PRET A MA INTERNET                                ,PGPC        5157                                  ,             339.3400,                                                  
DCMS                                              ,NHM                                               ,2012-05-08 00:00:00.000,P/L - Members Events Costs                        ,Commerce Visitor Events                           ,PRET A MANGER                                     ,PGPC        5157                                  ,              94.8900,                                                  
DCMS                                              ,NHM                                               ,2012-05-08 00:00:00.000,P/L - Members Events Costs                        ,Commerce Visitor Events                           ,PRO ADVENTURE LTD                                 ,PGPC        5157                                  ,            1458.3300,                                                  
DCMS                                              ,NHM                                               ,2012-05-08 00:00:00.000,MF - Travel Costs                                 ,DCS HR Health & Safety Unit                       ,OYSTER RENEW WEB                                  ,PGPC        5115                                  ,              35.0000,                                                  
DCMS                                              ,NHM                                               ,2012-05-08 00:00:00.000,MF - Travel Costs                                 ,Zoology Facility                                  ,SHAKE A HULA                                      ,PGPC        5147                                  ,               6.5500,                                                  
DCMS                                              ,NHM                                               ,2012-05-08 00:00:00.000,MF - Travel Costs                                 ,Science Directorate                               ,SOCIETY OF CHEMICA                                ,PGPC        5110                                  ,             100.0000,                                                  
DCMS                                              ,NHM                                               ,2012-05-08 00:00:00.000,MF - Travel Costs                                 ,DCS Directorate                                   ,HUXLEYS HEATHROW T                                ,PGPC        5090                                  ,              11.7000,                                                  
DCMS                                              ,NHM                                               ,2012-05-08 00:00:00.000,MF - Travel Costs                                 ,PEG Vis Serv Temporary Exhibitions                ,KEY TRAVEL                                        ,PGPC        5083                                  ,             666.1900,                                                  
DCMS                                              ,NHM                                               ,2012-05-08 00:00:00.000,MF - Travel Costs                                 ,Science Directorate                               ,KEY TRAVEL                                        ,PGPC        5150                                  ,            4039.4600,                                                  
DCMS                                              ,NHM                                               ,2012-05-08 00:00:00.000,MF - Travel Costs                                 ,Zoology Curation                                  ,LONDON MIDLAND TIC                                ,PGPC        5147                                  ,               5.5500,                                                  
DCMS                                              ,NHM                                               ,2012-05-08 00:00:00.000,MF - Travel Costs                                 ,Science Directorate                               ,LYME BAY HOLIDAYS LTD V/                          ,PGPC        5150                                  ,             239.1900,                                                  
DCMS                                              ,NHM                                               ,2012-05-08 00:00:00.000,MF - Travel Costs                                 ,Science Directorate                               ,LYME BAY HOLIDAYS LTD V/                          ,PGPC        5150                                  ,             351.9000,                                                  
DCMS                                              ,NHM                                               ,2012-05-08 00:00:00.000,MF - Travel Costs                                 ,DCS Directorate                                   ,APCOA-HAL-BP T5                                   ,PGPC        5090                                  ,              55.4000,                                                  
DCMS                                              ,NHM                                               ,2012-05-08 00:00:00.000,MF - Travel Costs                                 ,DCS Directorate                                   ,CASH FEE 2.95MIN                                  ,PGPC        5090                                  ,               3.1000,                                                  
DCMS                                              ,NHM                                               ,2012-05-08 00:00:00.000,MF - Travel Costs                                 ,Zoology Facility                                  ,EASY JET 0000018778069                            ,PGPC        5147                                  ,             380.2300,                                                  
DCMS                                              ,NHM                                               ,2012-05-08 00:00:00.000,MF - Travel Costs                                 ,Science Directorate                               ,EASYJET     0000018785997                         ,PGPC        5150                                  ,              73.9400,                                                  
DCMS                                              ,NHM                                               ,2012-05-08 00:00:00.000,MF - Travel Costs                                 ,Palaeontology Curation                            ,HOTEL DE GENEVE                                   ,PGPC        5080                                  ,             290.3800,                                                  
DCMS                                              ,NHM                                               ,2012-05-08 00:00:00.000,MF - Travel Costs                                 ,DCS Directorate                                   ,HOTEL GULDSMEDEN AXEL APS                         ,PGPC        5090                                  ,             151.1100,                                                  
DCMS                                              ,NHM                                               ,2012-05-08 00:00:00.000,MF - General Running Costs                        ,Science Directorate                               ,POSITIVE MEDIA PRO                                ,PGPC        5156                                  ,             347.5000,                                                  
DCMS                                              ,NHM                                               ,2012-05-08 00:00:00.000,MF - General Running Costs                        ,VE VLE Learning Experience                        ,PRET A MANGER                                     ,PGPC        5101                                  ,              26.2700,                                                  
DCMS                                              ,NHM                                               ,2012-05-08 00:00:00.000,MF - General Running Costs                        ,VE VLE Learning Experience                        ,RIGB                                              ,PGPC        5101                                  ,              20.0000,                                                  
DCMS                                              ,NHM                                               ,2012-05-08 00:00:00.000,MF - General Running Costs                        ,Photographic Unit (Image Resources)               ,WAREHOUSEEXPRESS.COM                              ,PGPC        5146                                  ,              29.9700,                                                  
DCMS                                              ,NHM                                               ,2012-05-08 00:00:00.000,MF - General Running Costs                        ,VE VLE Learning Experience                        ,WWW.LAZYBONEUK.COM                                ,PGPC        5101                                  ,             107.4500,                                                  
DCMS                                              ,NHM                                               ,2012-05-08 00:00:00.000,MF - IT Equipment < 5k                           ,VE Production Special Effects                     ,Amazon  Mktplce EU-UK                             ,PGPC        5136                                  ,             441.5700,                                                  
DCMS                                              ,NHM                                               ,2012-05-08 00:00:00.000,MF - General Running Costs                        ,VE VLE Learning Experience                        ,BRITISH A   1252602993942                         ,PGPC        5101                                  ,              39.3900,                                                  
DCMS                                              ,NHM                                               ,2012-05-08 00:00:00.000,MF - General Running Costs                        ,VE VLE Learning Experience                        ,DISPLAYSENSE.CO.UK                                ,PGPC        5101                                  ,              82.9300,                                                  
DCMS                                              ,NHM                                               ,2012-05-08 00:00:00.000,MF - General Running Costs                        ,VE VLE Learning Experience                        ,GIRAFFE JUICE BAR                                 ,PGPC        5101                                  ,              15.0000,                                                  
DCMS                                              ,NHM                                               ,2012-05-08 00:00:00.000,MF - General Running Costs                        ,Science Directorate                               ,NATURAL HISTORY MUSEUM                            ,PGPC        5150                                  ,              78.8000,                                                  
DCMS                                              ,NHM                                               ,2012-05-08 00:00:00.000,MF - General Running Costs                        ,Entomology Admin                                  ,PAYPAL  ESBB                                      ,PGPC        5110                                  ,              70.1300,                                                  
DCMS                                              ,NHM                                               ,2012-05-08 00:00:00.000,MF - General Running Costs                        ,VE VLE Learning Experience                        ,PIZZA EXPRESS                                     ,PGPC        5101                                  ,              17.9500,                                                  
DCMS                                              ,NHM                                               ,2012-05-08 00:00:00.000,Lab Consumables                                   ,Entomology Research                               ,VWR INTERNATIONAL LTD                             ,PGPC        5110                                  ,             329.1600,                                                  
DCMS                                              ,NHM                                               ,2012-05-08 00:00:00.000,Lab Consumables                                   ,Entomology Research                               ,WWW.BRUNELMICROSCOPES.CO                          ,PGPC        5156                                  ,              24.1700,                                                  
DCMS                                              ,NHM                                               ,2012-05-08 00:00:00.000,Lab Consumables                                   ,Botany Research                                   ,WWW.NBSBIO.CO.UK                                  ,PGPC        5156                                  ,             384.8300,                                                  
DCMS                                              ,NHM                                               ,2012-05-08 00:00:00.000,Materials & Props                                 ,VE Production Display & Conservation              ,WWW.GALATENTLTD.COM                               ,PGPC        5103                                  ,             444.7600,                                                  
DCMS                                              ,NHM                                               ,2012-05-08 00:00:00.000,MF - General Running Costs                        ,Entomology Admin                                  ,Amazon  Mktplce EU-UK                             ,PGPC        5110                                  ,              17.9600,                                                  
DCMS                                              ,NHM                                               ,2012-05-08 00:00:00.000,MF - General Running Costs                        ,VE VLE Learning Experience                        ,BRITISH A   1252602993941                         ,PGPC        5101                                  ,              39.3900,                                                  
DCMS                                              ,NHM                                               ,2012-05-08 00:00:00.000,Lab Consumables                                   ,Science Facilities - Molecular Colle              ,VWR INTERNATIONAL LTD                             ,PGPC        5110                                  ,               4.2900,                                                  
DCMS                                              ,NHM                                               ,2012-05-08 00:00:00.000,Hostel/Hotel Accommodation                        ,Science Research & Consulting Office              ,PAYPAL  DOCTORINHOU                               ,PGPC        5154                                  ,             218.6900,                                                  
DCMS                                              ,NHM                                               ,2012-05-08 00:00:00.000,Hostel/Hotel Accommodation                        ,Science Research & Consulting Office              ,PAYPAL  DOCTORINHOU                               ,PGPC        5154                                  ,             265.5100,                                                  
DCMS                                              ,NHM                                               ,2012-05-08 00:00:00.000,Irrecoverable VAT                                 ,Palaeontology Admin                               ,Barclay Card                                      ,PGPC        5080                                  ,              58.4300,                                                  
DCMS                                              ,NHM                                               ,2012-05-08 00:00:00.000,Irrecoverable VAT                                 ,DCS Finance                                       ,Barclay Card                                      ,PGPC        5089                                  ,               0.7100,                                                  
